{"text_format":"1","workbook":"xlsx","n_sheets":6,"sheets":["MODELE FICHE","Registre","Entités","Version","Reference","Param"],"not_rendered":{"charts":0,"images":1,"macros":1,"external_links":0,"defined_names":18,"comments":3,"pivot_tables":0},"unopened":[],"bounds":{"document_bytes":16777216,"sheet_cells":100000,"rows_first":2000,"rows_last":500,"rows_between":2000,"halvings":0,"cell_chars":16384,"cell_head_chars":4096},"cells_cut":0,"cells_raw":0,"read":"whole","date_system":"1900"}

{"sheet":"MODELE FICHE","index":0,"n_rows":147,"n_cols":18,"rows_kept":147,"cut":false,"hidden":false,"merged":[[146,2,146,7],[135,2,135,7],[2,2,2,7],[12,2,12,7],[41,2,41,3],[42,2,42,3],[45,2,45,3],[35,2,35,7],[47,4,47,7],[54,2,54,3],[40,2,40,3],[23,2,23,5],[24,2,24,5],[25,2,25,5],[26,2,26,5],[27,2,27,5],[28,2,28,5],[29,2,29,5],[23,6,23,7],[24,6,24,7],[25,6,25,7],[26,6,26,7],[46,4,46,7],[47,2,47,3],[48,8,48,17],[131,2,131,7],[1,2,1,7],[11,2,11,7],[68,2,68,3],[68,6,68,7],[49,2,49,3],[61,2,61,3],[62,2,62,3],[64,2,64,3],[65,2,65,3],[67,2,67,3],[32,2,32,7],[33,2,33,7],[34,2,34,7],[31,2,31,7],[66,2,66,3],[61,6,61,7],[42,4,42,7],[43,2,43,3],[45,4,45,7],[106,2,106,3],[106,4,106,7],[46,2,46,3],[77,2,77,3],[77,4,77,7],[78,2,78,3],[78,4,78,7],[75,4,75,5],[75,6,75,7],[71,4,71,5],[71,6,71,7],[63,2,63,3],[72,6,72,7],[74,6,74,7],[73,6,73,7],[69,2,69,3],[69,6,69,7],[50,2,50,3],[51,2,51,3],[37,2,37,3],[38,4,38,7],[39,4,39,7],[40,4,40,7],[41,4,41,7],[37,4,37,7],[38,2,38,3],[39,2,39,3],[43,4,43,7],[44,2,44,3],[44,4,44,7],[49,6,49,7],[50,6,50,7],[55,6,55,7],[51,6,51,7],[60,2,60,3],[60,6,60,7],[52,2,52,3],[52,6,52,7],[56,2,56,3],[56,6,56,7],[59,6,59,7],[55,2,55,3],[59,2,59,3],[53,2,53,3],[54,6,54,7],[53,6,53,7],[62,6,62,7],[63,6,63,7],[64,6,64,7],[65,6,65,7],[66,6,66,7],[67,6,67,7],[123,2,123,3],[123,4,123,7],[122,2,122,3],[122,4,122,7],[105,2,105,3],[105,4,105,7],[107,2,107,3],[107,4,107,7],[108,2,108,3],[108,4,108,7],[113,4,113,7],[114,2,114,3],[110,4,110,7],[111,2,111,3],[111,4,111,7],[121,2,121,3],[121,4,121,7],[112,2,112,3],[112,4,112,7],[113,2,113,3],[114,4,114,7],[109,2,109,3],[109,4,109,7],[110,2,110,3],[101,2,101,3],[101,4,101,7],[94,2,94,3],[94,4,94,7],[95,2,95,3],[95,4,95,7],[96,2,96,3],[96,4,96,7],[97,2,97,3],[97,4,97,7],[98,2,98,3],[98,4,98,7],[115,4,115,7],[116,2,116,3],[116,4,116,7],[117,2,117,3],[117,4,117,7],[83,2,83,3],[83,4,83,7],[84,2,84,3],[84,4,84,7],[88,2,88,3],[88,4,88,7],[87,2,87,3],[87,4,87,7],[85,2,85,3],[85,4,85,7],[86,2,86,3],[86,4,86,7],[99,2,99,3],[99,4,99,7],[100,2,100,3],[100,4,100,7],[93,2,93,3],[93,4,93,7],[92,2,92,3],[120,2,120,3],[120,4,120,7],[115,2,115,3],[27,6,27,7],[28,6,28,7],[29,6,29,7],[92,4,92,7],[91,2,91,3],[91,4,91,7],[90,2,90,3],[90,4,90,7],[89,2,89,3],[89,4,89,7],[79,2,79,3],[79,4,79,7],[80,2,80,3],[80,4,80,7],[81,2,81,3],[81,4,81,7],[82,2,82,3],[82,4,82,7],[72,4,72,5],[74,4,74,5],[73,4,73,5],[7,2,7,7],[57,2,57,3],[57,6,57,7],[78,1,93,1],[133,2,133,7],[125,2,125,7],[126,2,126,7],[127,2,127,7],[128,2,128,7],[129,2,129,7],[130,2,130,7],[103,2,103,3],[103,4,103,7],[104,2,104,3],[118,1,123,1],[105,1,117,1],[94,1,104,1],[118,2,118,3],[118,4,118,7],[119,2,119,3],[102,2,102,3],[102,4,102,7],[104,4,104,7],[119,4,119,7]]}
[null,null,"Fiche de registre :",null,{"$f":"C4","v":0}]
[null,{"$f":"IF(lang=\"nl\",Param!$C2,IF(lang=\"en\",Param!$B2,Param!$A2))","v":"Description  du traitement  "}]
[null,{"$f":"IF(lang=\"nl\",Param!$C3,IF(lang=\"en\",Param!$B3,Param!$A3))","v":"Nom / sigle"},"Projet de thèse-"]
[null,{"$f":"IF(lang=\"nl\",Param!$C4,IF(lang=\"en\",Param!$B4,Param!$A4))","v":"N° / REF"}]
[null,{"$f":"IF(lang=\"nl\",Param!$C5,IF(lang=\"en\",Param!$B5,Param!$A5))","v":"Traitement envisagé"},1,{"$f":"\"(0 - \"&VLOOKUP(0,INDIRECT(plageOuiNon),colRecherche,FALSE)&\"; 1 - \"&VLOOKUP(1,INDIRECT(plageOuiNon),colRecherche,FALSE)&\")\"","v":"(0 - Non; 1 - Oui)"}]
[null,{"$f":"IF(lang=\"nl\",Param!$C6,IF(lang=\"en\",Param!$B6,Param!$A6))","v":"Rôle"},1,{"$f":"\"(0 - \"&VLOOKUP(0,INDIRECT(plageRole),colRecherche,FALSE)&\"; 1 - \"&VLOOKUP(1,INDIRECT(plageRole),colRecherche,FALSE)&\")\"","v":"(0 - Responsable de traitement; 1 - Sous-traitant)"}]
[null,{"$f":"IF(lang=\"nl\",Param!$C7,IF(lang=\"en\",Param!$B7,Param!$A7))","v":"Origine de la collecte des données"},1,{"$f":"\"(0 - \"&VLOOKUP(0,INDIRECT(plageSource),colRecherche,FALSE)&\"; 1 - \"&VLOOKUP(1,INDIRECT(plageSource),colRecherche,FALSE)&\"; 2 - \"&VLOOKUP(2,INDIRECT(plageSource),colRecherche,FALSE)&\"; 3 - \"&VLOOKUP(3,INDIRECT(plageSource),colRecherche,FALSE)&\")\"","v":"(0 - Non déterminée; 1 - Collecte directe; 2 - Collecte indirecte; 3 - Les deux)"}]
[null,{"$f":"IF(lang=\"nl\",Param!$C8,IF(lang=\"en\",Param!$B8,Param!$A8))","v":"Description de la source"},"Collecte directe au travers de questionnaire et entretiens réalisés auprès"]
[null,{"$f":"IF(lang=\"nl\",Param!$C9,IF(lang=\"en\",Param!$B9,Param!$A9))","v":"Volumétrie des personnes concernées"}]
[null,{"$f":"IF(lang=\"nl\",Param!$C10,IF(lang=\"en\",Param!$B10,Param!$A10))","v":"Date de création"},"XX/XX/2025"]
[null,{"$f":"IF(lang=\"nl\",Param!$C11,IF(lang=\"en\",Param!$B11,Param!$A11))","v":"Mise à jour"}]
[null,{"$f":"IF(lang=\"nl\",Param!$C12,IF(lang=\"en\",Param!$B12,Param!$A12))","v":"Entité"}]
[null,{"$f":"IF(lang=\"nl\",Param!$C13,IF(lang=\"en\",Param!$B13,Param!$A13))","v":"Domaine (référence)"},"Thèse en "]
[null,{"$f":"IF(lang=\"nl\",Param!$C14,IF(lang=\"en\",Param!$B14,Param!$A14))","v":"Structure opérationnelle (référence)"},"Direction des affaires juridiques"]
[]
[null,"Acteurs","Nom","Adresse","CP ","Ville ","Pays ","Tel"]
[null,"Responsable du traitement","Université de Bordeaux ","35 place Pey-Berland ",33000,"BORDEAUX ","France"]
[null,"Délégué à la protection des données","L'Honoré William","43 Pierre Noailles",33400,"TALENCE","France"]
[null,"Représentant","Président Dean Lewis","43 Pierre Noailles",33400,"TALENCE"]
[null,"Responsable(s) conjoint(s)"]
[null,"Responsable interne du traitement","Direction des affaires juridiques","43 Pierre Noailles",33400,"TALENCE","France"]
[null,"Référent opérationnel"]
[]
[null,"Finalité(s) du traitement effectué","Description",null,null,null,"Fondement"]
[null,{"$f":"IF(lang=\"nl\",Param!$C51,IF(lang=\"en\",Param!$B51,Param!$A51))","v":"Finalité principale"},"Réalisation d'une étude portant sur XXXXXXXXXXXXXX",null,null,null,"Exécution d'une mission d'intérêt public"]
[null,{"$f":"IF(lang=\"nl\",Param!$C53,IF(lang=\"en\",Param!$B53,Param!$A53))","v":"Sous-finalité 1"},"Démarchage des personnes concernées",null,null,null,"Consentement"]
[null,{"$f":"IF(lang=\"nl\",Param!$C55,IF(lang=\"en\",Param!$B55,Param!$A55))","v":"Sous-finalité 2"},"Diffusion des questionnaires + réalisation des entretiens enregistrés ",null,null,null,"Exécution d'une mission d'intérêt public"]
[null,{"$f":"IF(lang=\"nl\",Param!$C57,IF(lang=\"en\",Param!$B57,Param!$A57))","v":"Sous-finalité 3"},"Anonymisation des réponses aux questionnaires et des retranscription des entretiens",null,null,null,"Exécution d'une mission d'intérêt public"]
[null,{"$f":"IF(lang=\"nl\",Param!$C59,IF(lang=\"en\",Param!$B59,Param!$A59))","v":"Sous-finalité 4"},"Destruction des audios ",null,null,null,"Exécution d'une mission d'intérêt public"]
[null,{"$f":"IF(lang=\"nl\",Param!$C61,IF(lang=\"en\",Param!$B61,Param!$A61))","v":"Sous-finalité 5"},"Archivage du projet de thèse",null,null,null,"Exécution d'une mission d'intérêt public"]
[]
[null,"Catégories de personnes concernées ","Description"]
[null,{"$f":"IF(lang=\"nl\",Param!$C63,IF(lang=\"en\",Param!$B63,Param!$A63))","v":"Catégorie de personnes 1"}]
[null,{"$f":"IF(lang=\"nl\",Param!$C64,IF(lang=\"en\",Param!$B64,Param!$A64))","v":"Catégorie de personnes 2"}]
[null,{"$f":"IF(lang=\"nl\",Param!$C65,IF(lang=\"en\",Param!$B65,Param!$A65))","v":"Catégorie de personnes 3"}]
[null,{"$f":"IF(lang=\"nl\",Param!$C66,IF(lang=\"en\",Param!$B66,Param!$A66))","v":"Catégorie de personnes 4"}]
[]
[null,"Destinataires","Description",null,"Type de destinataire"]
[null,"Destinataire 1",null,null,"Service interne qui traite les données"]
[null,"Destinataire 2",null,null,"Service interne qui traite les données"]
[null,"Destinataire 3",null,null,"Service interne qui traite les données"]
[null,"Destinataire 4",null,null,"Service interne qui traite les données"]
[null,"Destinataire 5"]
[null,"Destinataire 6"]
[null,"Destinataire 7"]
[null,"Destinataire 8"]
[null,"Destinataire 9"]
[null,"Destinataire 10"]
[null,null,null,null,null,null,null,null,"Mettre un 'x' dans les cases ci-dessous pour les destinataires concernés"]
[null,"Catégories de données personnelles concernées","Description",null,"Délai d'effacement","Fondement justifiant le délai","Destinataires\n(remplir la grille à droite =>)",null,"#1","#2","#3","#4","#5","#6","#7","#8","#9","#10"]
[1,{"$f":"VLOOKUP($A51,INDIRECT(plageCategorieDonnees),colRecherche,FALSE)","v":"Etat-civil, identité, données d'identification"},"Nom(s) \nPrénom(s) ",null,"Anonymisation des données au bout de 3 mois post réalisation des entretiens ","Destruction des audios ",{"$f":"IF(I51=\"\",\"\",\"1,\")&IF(J51=\"\",\"\",\"2,\")&IF(K51=\"\",\"\",\"3,\")&IF(L51=\"\",\"\",\"4,\")&IF(M51=\"\",\"\",\"5,\")&IF(N51=\"\",\"\",\"6,\")&IF(O51=\"\",\"\",\"7,\")&IF(P51=\"\",\"\",\"8,\")&IF(Q51=\"\",\"\",\"9,\")&IF(R51=\"\",\"\",\"10,\")","v":""},null,"","","","","","","","","",""]
[2,"Vie personnelle (habitudes de vie, situation familiale, hors données sensibles ou dangereuses...)","Adresse mail \nNuméro de téléphone ",null,"Suppression à la suite de la réalisation des entretiens (1 mois max)","Réalisation des entretiens enregistrés ",{"$f":"IF(I52=\"\",\"\",\"1,\")&IF(J52=\"\",\"\",\"2,\")&IF(K52=\"\",\"\",\"3,\")&IF(L52=\"\",\"\",\"4,\")&IF(M52=\"\",\"\",\"5,\")&IF(N52=\"\",\"\",\"6,\")&IF(O52=\"\",\"\",\"7,\")&IF(P52=\"\",\"\",\"8,\")&IF(Q52=\"\",\"\",\"9,\")&IF(R52=\"\",\"\",\"10,\")","v":""},null,"","","","","","","","","",""]
[3,"Vie professionnelle (CV, scolarité formation professionnelle, distinctions...)",null,null,"Anonymisation des données au bout de 3 mois post réalisation des entretiens","Destruction des audios ",{"$f":"IF(I53=\"\",\"\",\"1,\")&IF(J53=\"\",\"\",\"2,\")&IF(K53=\"\",\"\",\"3,\")&IF(L53=\"\",\"\",\"4,\")&IF(M53=\"\",\"\",\"5,\")&IF(N53=\"\",\"\",\"6,\")&IF(O53=\"\",\"\",\"7,\")&IF(P53=\"\",\"\",\"8,\")&IF(Q53=\"\",\"\",\"9,\")&IF(R53=\"\",\"\",\"10,\")","v":""},null,"","","","","","","","","",""]
[4,"Informations d'ordre économique et financier (revenus, situation financière, situation fiscale...)",null,null,null,null,"",null,"","","","","","","","","",""]
[5,"Données de connexion (adresses IP, journaux d'événements...)",null,null,null,null,"",null,"","","","","","","","","",""]
[6,"Données de localisation (déplacements, données GPS, GSM...)",null,null,null,null,"",null,"","","","","","","","","",""]
[7,"Coordonnées bancaires",null,null,null,null,{"$f":"IF(I57=\"\",\"\",\"1,\")&IF(J57=\"\",\"\",\"2,\")&IF(K57=\"\",\"\",\"3,\")&IF(L57=\"\",\"\",\"4,\")&IF(M57=\"\",\"\",\"5,\")&IF(N57=\"\",\"\",\"6,\")&IF(O57=\"\",\"\",\"7,\")&IF(P57=\"\",\"\",\"8,\")&IF(Q57=\"\",\"\",\"9,\")&IF(R57=\"\",\"\",\"10,\")","v":""},null,"","","","","","","","","",""]
[200,{"$f":"VLOOKUP($A58,INDIRECT(plageCategorieDonnees),colRecherche,FALSE)","v":"Autre"},null,null,null,null,{"$f":"IF(I58=\"\",\"\",\"1,\")&IF(J58=\"\",\"\",\"2,\")&IF(K58=\"\",\"\",\"3,\")&IF(L58=\"\",\"\",\"4,\")&IF(M58=\"\",\"\",\"5,\")&IF(N58=\"\",\"\",\"6,\")&IF(O58=\"\",\"\",\"7,\")&IF(P58=\"\",\"\",\"8,\")&IF(Q58=\"\",\"\",\"9,\")&IF(R58=\"\",\"\",\"10,\")","v":""},null,"","","","","","","","","",""]
[]
[null,"Données sensibles","Description",null,"Délai d'effacement","Fondement justifiant le délai","Destinataires",null,"#1","#2","#3","#4","#5","#6","#7","#8","#9","#10"]
[8,{"$f":"VLOOKUP($A61,INDIRECT(plageCategorieDonnees),colRecherche,FALSE)","v":"Données révélant l'origine raciale ou ethnique"},null,null,null,null,{"$f":"IF(I61=\"\",\"\",\"1,\")&IF(J61=\"\",\"\",\"2,\")&IF(K61=\"\",\"\",\"3,\")&IF(L61=\"\",\"\",\"4,\")&IF(M61=\"\",\"\",\"5,\")&IF(N61=\"\",\"\",\"6,\")&IF(O61=\"\",\"\",\"7,\")&IF(P61=\"\",\"\",\"8,\")&IF(Q61=\"\",\"\",\"9,\")&IF(R61=\"\",\"\",\"10,\")","v":""},null,"","","","","","","","","",""]
[9,"Données révélant les opinions politiques",null,null,null,null,{"$f":"IF(I62=\"\",\"\",\"1,\")&IF(J62=\"\",\"\",\"2,\")&IF(K62=\"\",\"\",\"3,\")&IF(L62=\"\",\"\",\"4,\")&IF(M62=\"\",\"\",\"5,\")&IF(N62=\"\",\"\",\"6,\")&IF(O62=\"\",\"\",\"7,\")&IF(P62=\"\",\"\",\"8,\")&IF(Q62=\"\",\"\",\"9,\")&IF(R62=\"\",\"\",\"10,\")","v":""},null,"","","","","","","","","",""]
[10,"Données révélant les convictions religieuses ou philosophiques",null,null,null,null,"",null,"","","","","","","","","",""]
[11,"Données révélant l'appartenance syndicale",null,null,null,null,"",null,"","","","","","","","","",""]
[12,"Données génétiques",null,null,null,null,"",null,"","","","","","","","","",""]
[13,"Données biométriques aux fins d'identifier une personne physique de manière unique","Voix",null,"Suppression des enregistrements maximum 3 mois post réalisation des entretiens ","Destruction des audios ","",null,"","","","","","","","","",""]
[14,"Données concernant la santé",null,null,null,null,"",null,"","","","","","","","","",""]
[15,"Données concernant la vie sexuelle ou l'orientation sexuelle ",null,null,null,null,"",null,"","","","","","","","","",""]
[16,"Données relatives à des condamnations pénales ou  infractions",null,null,null,null,"",null,"","","","","","","","","",""]
[17,"Numéro d'identification  national unique (NIR pour la France)",null,null,null,null,"",null,"","","","","","","","","",""]
[]
[null,"Tranferts hors UE","Destinataire","Pays","Type de Garanties",null,"Lien vers le doc"]
[null,"Organisme destinataire 1"]
[null,"Organisme destinataire 2"]
[null,"Organisme destinataire 3"]
[null,"Organisme destinataire 4"]
[]
[null,"Mesures de sécurité ","Mesures possibles",null,"Justification"]
[1,{"$f":"VLOOKUP(1,INDIRECT(plageTypeMesure),colRecherche,FALSE)","v":"Mesures de nature juridique"},{"$f":"VLOOKUP($A79,INDIRECT(plageMesure),colRecherche,FALSE)","v":"Finalité : finalité déterminée, explicite et légitime"},{"$f":"VLOOKUP($A79,INDIRECT(plageCategorieDonnees),colRecherche,FALSE)","v":"Etat-civil, identité, données d'identification"},"Les finalités des traitements ont été déterminées en amont de la recherche et répondent uniquement aux objectifs de la recherche. "]
[2,null,"Minimisation : réduction des données à celles strictement nécessaires","Vie personnelle (habitudes de vie, situation familiale, hors données sensibles ou dangereuses...)","Validation du guide des entretiens au préalable par le DAJ.\nLes données à caractère personnel inécessaires au regard des finalités de la recherche ne seront pas retranscrites. \n "]
[3,null,"Qualité : préservation de la qualité des données à caractère personnel","Vie professionnelle (CV, scolarité formation professionnelle, distinctions...)","Les entretiens seront enregistrés et stockés au sein d'un serveur sécurisé. "]
[4,null,"Durées de conservation : durée nécessaire à l'accomplissement des finalités, à défaut d'une autre obligation légale imposant une conservation plus longue","Informations d'ordre économique et financier (revenus, situation financière, situation fiscale...)","Les données de contact des personnes concernées seront supprimées à la suite des entretiens. Les enregistrements seront retranscrits puis supprimées trois mois après la finalisation des entretiens. Une procédure d'anonymisation sera mise en œuvre lors de la retrancription des entretiens. "]
[5,null,"Information : respect du droit à l'information des personnes concernées","Données de connexion (adresses IP, journaux d'événements...)","Envoi d'une notice d'information en amont des entretiens aux personnes concernées. "]
[6,null,"Fondement : Modalités de recueil du consentement ou justification d'un autre fondement assurant la licéité de ce traitement","Données de localisation (déplacements, données GPS, GSM...)","Non-concerné. C'est le régime de la non-opposition qui s'applique (MR-004/MR-003); "]
[7,null,"Droit d'opposition : respect du droit d'opposition des personnes concernées","Coordonnées bancaires","Droit d'opposition au traitement peut être mis en œuvre pendant 30 jours après la réalisation des entretiens. Ce droit ne peut perdurer dans le temps car il ne faut pas que les résultats soient compromis. "]
[8,null,"Droit d'accès : respect du droit des personnes concernées d'accéder à leurs données","Données révélant l'origine raciale ou ethnique","Demande d'exercice de droit peut être exercée en amont de l'anonymisation des entretiens. Cette demande peut être réalisée auprès des étudiants. "]
[9,null,"Droit de rectification : respect du droit des personnes concernées de corriger leurs données et de les effacer","Données révélant les opinions politiques","Demande d'exercice de droit peut être exercée en amont de l'anonymisation des entretiens. Cette demande peut être réalisée auprès des étudiants. "]
[10,null,"Transferts : respect des obligations en matière de transfert de données en dehors de l'Union européenne","Données révélant les convictions religieuses ou philosophiques","Pas de transfert de données réalisé. "]
[11,null,"Formalités : définition et accomplissement des formalités préalables applicables au traitement","Données révélant l'appartenance syndicale","Instruction RGPD réalisée par la Direction des affaires juridiques. "]
[41,null,"Droit à la portabilité : respect du droit à la portabilité des données à caractère personnel",{"$error":"#N/A"},"Non-applicable. "]
[42,null,"Droit à la limitation : respect du droit à la limitation des traitements des données à caractère personnel",{"$error":"#N/A"},"Non-applicable. "]
[43,null,"Droit à l'effacement",{"$error":"#N/A"},"Non-applicable. "]
[44,null,"Droit à ne pas faire l'objet d'une décision entièrement automatisée",{"$error":"#N/A"},"Non-applicable. "]
[45,null,"Obligation d'assurer la chaîne des droits",{"$error":"#N/A"},"Non-applicable. "]
[12,{"$f":"VLOOKUP(2,INDIRECT(plageTypeMesure),colRecherche,FALSE)","v":"Mesures organisationnelles"},"Organisation","Données génétiques"]
[13,null,"Politique (gestion des règles)","Données biométriques aux fins d'identifier une personne physique de manière unique"]
[14,null,"Gestion des risques","Données concernant la santé"]
[15,null,"Gestion des projets","Données concernant la vie sexuelle ou l'orientation sexuelle "]
[16,null,"Gestion des incidents et des violations de données","Données relatives à des condamnations pénales ou  infractions"]
[17,null,"Gestion des personnels","Numéro d'identification  national unique (NIR pour la France)"]
[18,null,"Encadrement des relations avec les tiers",{"$error":"#N/A"}]
[19,null,"Maintenance",{"$error":"#N/A"}]
[20,null,"Supervision (audits, tableaux de bord...)",{"$error":"#N/A"}]
[21,null,"Marquage des documents",{"$error":"#N/A"}]
[22,null,"Archivage",{"$error":"#N/A"},"Politique d'archivage propre aux projets de thèse. "]
[23,{"$f":"VLOOKUP(3,INDIRECT(plageTypeMesure),colRecherche,FALSE)","v":"Mesures de sécurité logique"},"Anonymisation",{"$error":"#N/A"},"Mise en place de la procédure d'anonymisation lors de la retranscription des entretiens. "]
[46,null,"Pseudonymisation",{"$error":"#N/A"}]
[24,null,"Chiffrement"]
[25,null,"Contrôle d'intégrité"]
[26,null,"Sauvegardes"]
[27,null,"Cloisonnement (données, réseau)"]
[28,null,"Contrôle d'accès logique"]
[29,null,"Traçabilité"]
[30,null,"Exploitation"]
[31,null,"Surveillance (paramétrages, contrôles de configurations, surveillance en temps réel...)"]
[32,null,"Gestion des postes de travail"]
[33,null,"Lutte contre les codes malveillants (virus, logiciels espions, bombes logicielles...)"]
[34,null,"Protection des canaux informatiques (réseaux)"]
[35,{"$f":"VLOOKUP(4,INDIRECT(plageTypeMesure),colRecherche,FALSE)","v":"Mesures de sécurité physique"},"Éloignement des sources de risques (produits dangereux, zones géographiques dangereuses...)"]
[36,null,"Contrôle d'accès physique"]
[37,null,"Sécurité des matériels"]
[38,null,"Sécurité des documents papier"]
[39,null,"Sécurité des canaux papier",{"$error":"#N/A"}]
[40,null,"Protection contre les sources de risques non humaines (feu, eau...)",{"$error":"#N/A"}]
[]
[null,"Logiciels","Nom de l'application"]
[null,{"$f":"IF(lang=\"nl\",Param!$C221,IF(lang=\"en\",Param!$B221,Param!$A221))","v":"Application #1"},"UBCloud"]
[null,{"$f":"IF(lang=\"nl\",Param!$C222,IF(lang=\"en\",Param!$B222,Param!$A222))","v":"Application #2"},"LimeSurvey"]
[null,{"$f":"IF(lang=\"nl\",Param!$C223,IF(lang=\"en\",Param!$B223,Param!$A223))","v":"Application #3"}]
[null,{"$f":"IF(lang=\"nl\",Param!$C224,IF(lang=\"en\",Param!$B224,Param!$A224))","v":"Application #4"}]
[null,{"$f":"IF(lang=\"nl\",Param!$C225,IF(lang=\"en\",Param!$B225,Param!$A225))","v":"Application #5"}]
[null,{"$f":"IF(lang=\"nl\",Param!$C226,IF(lang=\"en\",Param!$B226,Param!$A226))","v":"Application #6"}]
[]
[null,{"$f":"IF(lang=\"nl\",Param!$C227,IF(lang=\"en\",Param!$B227,Param!$A227))","v":"Commentaires"}]
[]
[null,"Facteurs de risques",{"$f":"\"(0 - \"&VLOOKUP(0,INDIRECT(plageOuiNon),colRecherche,FALSE)&\"; 1 - \"&VLOOKUP(1,INDIRECT(plageOuiNon),colRecherche,FALSE)&\")\"","v":"(0 - Non; 1 - Oui)"}]
[null,{"$f":"IF(lang=\"nl\",Param!$C228,IF(lang=\"en\",Param!$B228,Param!$A228))","v":"Evaluation / Scoring"},"0"]
[null,{"$f":"IF(lang=\"nl\",Param!$C229,IF(lang=\"en\",Param!$B229,Param!$A229))","v":"Décision automatique avec effet légal"},"0"]
[null,{"$f":"IF(lang=\"nl\",Param!$C230,IF(lang=\"en\",Param!$B230,Param!$A230))","v":"Surveillance systématique"},0]
[null,{"$f":"IF(lang=\"nl\",Param!$C231,IF(lang=\"en\",Param!$B231,Param!$A231))","v":"Large échelle"},"0"]
[null,{"$f":"IF(lang=\"nl\",Param!$C232,IF(lang=\"en\",Param!$B232,Param!$A232))","v":"Croisement de données"},"0"]
[null,{"$f":"IF(lang=\"nl\",Param!$C233,IF(lang=\"en\",Param!$B233,Param!$A233))","v":"Personnes vulnérables"},"0"]
[null,{"$f":"IF(lang=\"nl\",Param!$C234,IF(lang=\"en\",Param!$B234,Param!$A234))","v":"Usage innovant"},"0"]
[null,{"$f":"IF(lang=\"nl\",Param!$C235,IF(lang=\"en\",Param!$B235,Param!$A235))","v":"Blocage d'un droit / contrat"},"0"]
[null,{"$f":"IF(lang=\"nl\",Param!$C236,IF(lang=\"en\",Param!$B236,Param!$A236))","v":"Données sensibles"},"0"]
[null,{"$f":"IF(lang=\"nl\",Param!$C237,IF(lang=\"en\",Param!$B237,Param!$A237))","v":"Exonération"}]
[null,{"$f":"IF(lang=\"nl\",Param!$C238,IF(lang=\"en\",Param!$B238,Param!$A238))","v":"Justification exonération"}]

{"sheet":"Registre","index":1,"n_rows":4,"n_cols":237,"rows_kept":4,"cut":false,"hidden":false,"merged":[]}
["Description  du traitement  ","Nom / sigle","N° / REF","Traitement envisagé","Rôle","Origine de la collecte des données","Description de la source","Volumétrie des personnes concernées","Date de création","Mise à jour","Entité","Domaine\n(référence)","Structure opérationnelle (référence)","Nom \nRT","Adresse \nRT","CP \nRT","Ville \nRT","Pays \nRT","Tel \nRT","Nom \nDPO","Adresse \nDPO","CP \nDPO","Ville \nDPO","Pays \nDPO","Tel \nDPO","Nom \nReprésentant","Adresse \nReprésentant","CP \nReprésentant","Ville \nReprésentant","Pays \nReprésentant","Tel \nReprésentant","Nom \nCo-Responsable","Adresse \nCo-Responsable","CP \nCo-Responsable","Ville \nCo-Responsable","Pays \nCo-Responsable","Tel \nCo-Responsable","Nom \nResponsable interne","Adresse \nResponsable interne","CP \nResponsable interne","Ville \nResponsable interne","Pays \nResponsable interne","Tel \nResponsable interne","Nom \nReférent opérationnel","Adresse \nReférent opérationnel","CP \nReférent opérationnel","Ville \nReférent opérationnel","Pays \nReférent opérationnel","Tel \nReférent opérationnel","Finalité principale","Fondement","Sous-finalité 1","Fondement 1","Sous-finalité 2","Fondement 2","Sous-finalité 3","Fondement 3","Sous-finalité 4","Fondement 4","Sous-finalité 5","Fondement 5","Catégorie de personnes 1","Catégorie de personnes 2","Catégorie de personnes 3","Catégorie de personnes 4","Description\nDestinataire 1","Type de destinataire 1","Description\nDestinataire 2","Type de destinataire 2","Description\nDestinataire 3","Type de destinataire 3","Description\nDestinataire 4","Type de destinataire 4","Description\nDestinataire 5","Type de destinataire 5","Description\nDestinataire 6","Type de destinataire 6","Description\nDestinataire 7","Type de destinataire 7","Description\nDestinataire 8","Type de destinataire 8","Description\nDestinataire 9","Type de destinataire 9","Description\nDestinataire 10","Type de destinataire 10","Description \nCat. DCP1","Délai d'effacement\nCat. DCP1","Fondement justifiant le délai\nCat. DCP1","Destinataires\nCat. DCP1","Description \nCat. DCP2","Délai d'effacement\nCat. DCP2","Fondement justifiant le délai\nCat. DCP2","Destinataires\nCat. DCP2","Description \nCat. DCP3","Délai d'effacement\nCat. DCP3","Fondement justifiant le délai\nCat. DCP3","Destinataires\nCat. DCP3","Description \nCat. DCP4","Délai d'effacement\nCat. DCP4","Fondement justifiant le délai\nCat. DCP4","Destinataires\nCat. DCP5","Description \nCat. DCP5","Délai d'effacement\nCat. DCP5","Fondement justifiant le délai\nCat. DCP5","Destinataires\nCat. DCP5","Description \nCat. DCP6","Délai d'effacement\nCat. DCP6","Fondement justifiant le délai\nCat. DCP6","Destinataires\nCat. DCP6","Description \nCat. DCP7","Délai d'effacement\nCat. DCP7","Fondement justifiant le délai\nCat. DCP7","Destinataires\nCat. DCP7","Description \nCat. DCP200","Délai d'effacement\nCat. DCP200","Fondement justifiant le délai\nCat. DCP200","Destinataires\nCat. DCP200","Description \nCat. DCP8","Délai d'effacement\nCat. DCP8","Fondement justifiant le délai\nCat. DCP8","Destinataires\nCat. DCP8","Description \nCat. DCP9","Délai d'effacement\nCat. DCP9","Fondement justifiant le délai\nCat. DCP9","Destinataires\nCat. DCP9","Description \nCat. DCP10","Délai d'effacement\nCat. DCP10","Fondement justifiant le délai\nCat. DCP10","Destinataires\nCat. DCP10","Description \nCat. DCP11","Délai d'effacement\nCat. DCP11","Fondement justifiant le délai\nCat. DCP11","Destinataires\nCat. DCP11","Description \nCat. DCP12","Délai d'effacement\nCat. DCP12","Fondement justifiant le délai\nCat. DCP12","Destinataires\nCat. DCP12","Description \nCat. DCP13","Délai d'effacement\nCat. DCP13","Fondement justifiant le délai\nCat. DCP13","Destinataires\nCat. DCP13","Description \nCat. DCP14","Délai d'effacement\nCat. DCP14","Fondement justifiant le délai\nCat. DCP14","Destinataires\nCat. DCP14","Description \nCat. DCP15","Délai d'effacement\nCat. DCP15","Fondement justifiant le délai\nCat. DCP15","Destinataires\nCat. DCP15","Description \nCat. DCP16","Délai d'effacement\nCat. DCP16","Fondement justifiant le délai\nCat. DCP16","Destinataires\nCat. DCP16","Description \nCat. DCP17","Délai d'effacement\nCat. DCP17","Fondement justifiant le délai\nCat. DCP17","Destinataires\nCat. DCP17","Destinataire\nTransfert 1","Pays\nTransfert 1","Type de Garanties\nTransfert 1","Lien vers le doc\nTransfert 1","Destinataire\nTransfert 2","Pays\nTransfert 2","Type de Garanties\nTransfert 2","Lien vers le doc\nTransfert 2","Destinataire\nTransfert 3","Pays\nTransfert 3","Type de Garanties\nTransfert 3","Lien vers le doc\nTransfert 3","Destinataire\nTransfert 4","Pays\nTransfert 4","Type de Garanties\nTransfert 4","Lien vers le doc\nTransfert 4","Mesures de sécurité\nPoint de contrôle 1","Mesures de sécurité\nPoint de contrôle 2","Mesures de sécurité\nPoint de contrôle 3","Mesures de sécurité\nPoint de contrôle 4","Mesures de sécurité\nPoint de contrôle 5","Mesures de sécurité\nPoint de contrôle 6","Mesures de sécurité\nPoint de contrôle 7","Mesures de sécurité\nPoint de contrôle 8","Mesures de sécurité\nPoint de contrôle 9","Mesures de sécurité\nPoint de contrôle 10","Mesures de sécurité\nPoint de contrôle 11","Mesures de sécurité\nPoint de contrôle 12","Mesures de sécurité\nPoint de contrôle 13","Mesures de sécurité\nPoint de contrôle 14","Mesures de sécurité\nPoint de contrôle 15","Mesures de sécurité\nPoint de contrôle 16","Mesures de sécurité\nPoint de contrôle 17","Mesures de sécurité\nPoint de contrôle 18","Mesures de sécurité\nPoint de contrôle 19","Mesures de sécurité\nPoint de contrôle 20","Mesures de sécurité\nPoint de contrôle 21","Mesures de sécurité\nPoint de contrôle 22","Mesures de sécurité\nPoint de contrôle 23","Mesures de sécurité\nPoint de contrôle 24","Mesures de sécurité\nPoint de contrôle 25","Mesures de sécurité\nPoint de contrôle 26","Mesures de sécurité\nPoint de contrôle 27","Mesures de sécurité\nPoint de contrôle 28","Mesures de sécurité\nPoint de contrôle 29","Mesures de sécurité\nPoint de contrôle 30","Mesures de sécurité\nPoint de contrôle 31","Mesures de sécurité\nPoint de contrôle 32","Mesures de sécurité\nPoint de contrôle 33","Mesures de sécurité\nPoint de contrôle 34","Mesures de sécurité\nPoint de contrôle 35","Mesures de sécurité\nPoint de contrôle 36","Mesures de sécurité\nPoint de contrôle 37","Mesures de sécurité\nPoint de contrôle 38","Mesures de sécurité\nPoint de contrôle 39","Mesures de sécurité\nPoint de contrôle 40","Mesures de sécurité\nPoint de contrôle 41","Mesures de sécurité\nPoint de contrôle 42","Mesures de sécurité\nPoint de contrôle 43","Mesures de sécurité\nPoint de contrôle 44","Mesures de sécurité\nPoint de contrôle 45","Mesures de sécurité\nPoint de contrôle 46","Application 1","Application 2","Application 3","Application 4","Application 5","Application 6","Commentaires","Evaluation / Scoring","Décision automatique avec effet légal","Surveillance systématique","Large échelle","Croisement de données","Personnes vulnérables","Usage innovant","Blocage d'un droit / contrat","Données sensibles","Exonération","Justification exonération"]
[null,null,"vide"]
["Gestion administrative des personnels (dossier professionnel, annuaires, élections professionnelles…) ; Mise à disposition d’outils informatiques (suivi et maintenance des matériels, annuaires informatiques, messagerie électronique, intranet…) ; l’organisation du travail (agendas professionnels, gestion des tâches) ; la gestion des carrières (évaluation, validation des acquis, mobilité…) ; la formation des personnels.","Gestion RH","RH1",0,0,null,"Décrire la source de votre traitement","Donner la volumétrie des personnes concernées","1983-01-01","29/01/2021","1 - PRIVE - Groupe SA","Ressources humaines","Direction des Ressources Humaines","PDG Entite 1","Adresse entité 1",75005,"PARIS","France","0155 55 55 55","DPO Entité 1","Adresse entité 1",75005,"PARIS","France","0155 55 55 55",null,null,null,null,null,null,null,null,null,null,null,null,"DRH Entité 1","Adresse entité 1",75005,"PARIS","France","0155 55 55 55",null,null,null,null,null,null,"Quels sont les objectifs poursuivis pour ce traitement (les finalités) ?","Consentement","Renseigner une sous-finalité (facultatif)","Exécution d'un contrat ou mesures pré-contractuelles","Renseigner une sous-finalité (facultatif)","Respect d'une obligation légale","Renseigner une sous-finalité (facultatif)","Respect d'une obligation légale","Renseigner une sous-finalité (facultatif)","Respect d'une obligation légale",null,null,"Quelles sont les personnes dont vous recueillez les données (dites personnes concernées) ?",null,null,null,"Qui accède à tout ou partie des données personnelles ou peut recevoir des extractions de ces données ?","Service interne qui traite les données",null,"Service interne qui traite les données",null,"Service interne qui traite les données",null,"Service interne qui traite les données",null,null,null,null,null,null,null,null,null,null,null,null,"nom, prénom, photographie (facultatif), sexe, date et lieu de naissance, nationalité, coordonnées professionnelles, coordonnées personnelles (facultatif), matricule interne, références du passeport (uniquement pour les personnels amenés à se déplacer à l'étranger) type, numéro d'ordre et copie du titre valant autorisation de travail pour les employés étrangers en application de l'article R. 620-3 du code du travail ","Le temps de la période d'emploi de la personne concernée",null,null,null,null,null,null,null,null,null,null,null,null,null,null,null,null,null,null,null,null,null,null,null,null,null,null,null,null,null,null,null,null,null,null,null,null,null,null,null,null,null,null,null,null,null,null,null,null,null,null,null,null,null,null,null,null,null,null,null,null,null,null,null,null,null,null,"NIR pour la paie",null,"Gestion administrative du personnel",null,null,null,null,null,null,null,null,null,null,null,null,null,null,null,null,null,"Gestion RH","Aucune donnée n'est collectée sans pertinence",null,"Conformément au cadre fixé par la NS46","L'employé est informer de cette collecte lors de la signature de son contrat de travail par le biais d'un document indépendant de son contrat","Le recueil de consentement est réalisé lors de la signature de son contrat de travail par le biais d'un document indépendant de son contrat","Procédure formalisée et disponible sur l'intranet interne","Procédure formalisée et disponible sur l'intranet interne","Procédure formalisée et disponible sur l'intranet interne",null,"Norme Simplifiée 46",null,null,null,null,null,null,null,null,null,null,null,null,null,null,null,null,null,null,null,null,"Politique de sauvegarde formalisé dans un document dédié dans la PSSI",null,null,null,null,null,null,null,null,null,null,null,null,null,null,null,null,null,null,null,null,null,1,1,0,1]
["Gestion administrative des personnels (dossier professionnel, annuaires, élections professionnelles…) ; Mise à disposition d’outils informatiques (suivi et maintenance des matériels, annuaires informatiques, messagerie électronique, intranet…) ; l’organisation du travail (agendas professionnels, gestion des tâches) ; la gestion des carrières (évaluation, validation des acquis, mobilité…) ; la formation des personnels.","Gestion RH","RH2",0,0,3,"Les annexes de nos xontrats",null,"1983-01-01","29/01/2021","1 - PRIVE - Groupe SA","RH",null,"PDG Entite 1","Adresse entité 1",75005,"PARIS","France","0155 55 55 55","DPO Entité 1","Adresse entité 1",75005,"PARIS","France","0155 55 55 55",null,null,null,null,null,null,null,null,null,null,null,null,"DRH Entité 1","Adresse entité 1",75005,"PARIS","France","0155 55 55 55",null,null,null,null,null,null,"Gestion administrative du personnel","Exécution d'un contrat ou mesures pré-contractuelles","Mise à disposition d'outils informatiques","Exécution d'un contrat ou mesures pré-contractuelles","Organisation du travail","Respect d'une obligation légale","Gestion de carrières","Consentement","Formation du personnel","Respect d'une obligation légale",null,null,"Employés",null,null,null,"Les personnes habilitées chargées de la gestion du personnel","Service interne qui traite les données","Les supérieurs hiérarchiques des employés concernés, à l'exclusion des données relatives à l'action sociale directement mise en oeuvre par l'employeur ","Service interne qui traite les données","Les instances représentatives du personnel","Service interne qui traite les données","Les délégués syndicaux","Service interne qui traite les données",null,null,null,null,null,null,null,null,null,null,null,null,"nom, prénom, photographie (facultatif), sexe, date et lieu de naissance, nationalité, coordonnées professionnelles, coordonnées personnelles (facultatif), matricule interne, références du passeport (uniquement pour les personnels amenés à se déplacer à l'étranger) type, numéro d'ordre et copie du titre valant autorisation de travail pour les employés étrangers en application de l'article R. 620-3 du code du travail ","Le temps de la période d'emploi de la personne concernée",null,null,null,null,null,null,null,null,null,null,null,null,null,null,null,null,null,null,null,null,null,null,null,null,null,null,null,null,null,null,null,null,null,null,null,null,null,null,null,null,null,null,null,null,null,null,null,null,null,null,null,null,null,null,null,null,null,null,null,null,null,null,null,null,null,null,"NIR pour la paie","2 ans","Gestion administrative du personnel",null,"Les délégués syndicaux","France","Code de conduite",null,null,null,null,null,null,null,null,null,null,null,null,null,"Gestion RH","Aucune donnée n'est collectée sans pertinence",null,"Conformément au cadre fixé par la NS46","L'employé est informer de cette collecte lors de la signature de son contrat de travail par le biais d'un document indépendant de son contrat","Le recueil de consentement est réalisé lors de la signature de son contrat de travail par le biais d'un document indépendant de son contrat","Procédure formalisée et disponible sur l'intranet interne","Procédure formalisée et disponible sur l'intranet interne","Procédure formalisée et disponible sur l'intranet interne",null,"Norme Simplifiée 46",null,null,null,null,null,null,null,null,null,null,null,null,null,null,null,null,null,null,null,null,"Politique de sauvegarde formalisé dans un document dédié dans la PSSI",null,null,null,null,null,null,null,null,null,null,null,null,null,null,null,null,null,null,null,null,null,1,1,0,1]

{"sheet":"Entités","index":2,"n_rows":21,"n_cols":2,"rows_kept":21,"cut":false,"hidden":false,"merged":[]}
["ref","libelle"]
["Groupe SA","1 - PRIVE - Groupe SA"]
["Filiale BELGIQUE","1.1 - Filiale BELGIQUE"]
["BE - 01","1.1.1 - BE - 01"]
["BE - 02","1.1.2 - BE - 02"]
["Filiale FRANCE","1.2 - Filiale FRANCE"]
["FR - 01","1.2.1 FR - 01"]
["FR - 02","1.2.2 FR - 02"]
["Filiale R&D","1.3 - Filiale R&D"]
["SGU","2 - Sub Group in UK"]
["ECI_001","2.1 - Brazil International"]
["ECI_114","2.1.1 - UK Group Lab SAS"]
["ECI_152","2.1.1.1 - UK in Italia SpA"]
["ECI_110","2.1.2 - UK Sub Group in France SAS"]
["ECI_002","2.2 - UK Participations"]
["Filiale PAYS-BAS","3 - BE-NL Groep"]
["SERV_01","3.1 - Service Groep"]
["ASSUR_01","3.2 - Verzekering Groep"]
["CT","4 - PUBLIC - Collectivité Territoriale"]
["EJ","4.1 - Enfance & Jeunesse"]
["Holding","Entités juridiques"]

{"sheet":"Version","index":3,"n_rows":17,"n_cols":4,"rows_kept":17,"cut":false,"hidden":false,"merged":[]}
["Ordre","Date","Auteur","Description"]
[1,"2019-01-24","C. Hartz","Mise en place de 10 colonnes pour indiquer les destinataires associés à chaque type de données.\nL'utilisateur doit simplement saisir un \"x\" au croisement des lignes et des colonnes.\nLa colonne de données pour l'import est composée de la concaténation des colonnes avec un 'x' et un séparateur ','.\nLa colonne affichée est calculée et non saisissable. \nModification de la macro correspondante."]
[2,"2019-01-24","C. Hartz","Modification des polices caractères pour en simplifier la visualisation"]
[3,"2019-01-24","C. Hartz","Insertion d'une nouvelle données en ligne 47 (Vie professionnelle). Insertion des 4 lignes de DCP dans Param à la ligne 89 avec pointage sur la ligne 47 (recalage de la colonne des numéros de colonne et des libellés des colonnes). Insertion de 4 colonnes à partir de la colonne CJ pour les nouvelles données."]
[4,"2019-01-24","C. Hartz","Idem pour les coordonnées bancares en ligne 51. Et ajout de 4 colonnes avant CZ."]
[5,"2019-01-25","C. Hartz","Ajout de 5 nouvelles mesures juridiques en ligne 83. Insertion des 5 items dans l'onglet Données de référence pour récupérer facilement les traductions (insertion d'un colone libellé en avant le type des mesures).\nAjout des 5 lignes dans param à partir de la ligne 178 pour tenir compte des 5 nouvelles lignes et lien vers les cellules associées de la fiche.\nAjout de 5 colonnes à partir de FS dans l'onglet listing pour permettre la sauvegarde.\nModification de la macro pour faire une recherche exacte des id de fiche (ajout LookAt := xlWhole)"]
[6,"2019-04-12","C. Hartz","Adaptation à la v4.3 (ajout de la langue NL). Traduction des messages des macros. Sécurisation du fichier."]
[7,"2019-09-20","C. Hartz","Adaptation à la v4.4. Ajout du rôle et de la structure opérationnelle (insertion d'une colonne avant D pour le rôle, puis insertion d'une colonne avant I pour la structure opérationnelle)"]
[8,"2019-12-07","C. Hartz","Ajout des indicateurs de risques en fin de tableau"]
[9,"2020-06-11","C. Hartz","Adapation à la V4.6. Modification du libellé du fondement \"Exécution d'un contrat\" en \"Exécution d'un contrat ou mesures pré-contractuelles\". Modification du libellé des types de garanties."]
[10,"2020-06-11","C. Hartz","Adaptation à la V4.6. insertion de 1 colonne à partir de la colonne D pour les traitements envisagés"]
[11,"2020-06-11","C. Hartz","Adaptation à la v4.6. Insertion de 3 colonnes à partir de la colonne F pour les données de source de collecte et de la volumétrie des personnes concernées."]
[12,"2020-06-11","C. Hartz","Adaptation à la V4.6. insertion de 4 colonnes à partir de la colonne DJ pour les DCP \"Autres\" (DCP #200)"]
[13,"2020-06-11","C. Hartz","Adaptation à la V4.6. insertion de 1 colonne à partir de HZ pour le facteur \"Données sensibles\""]
[14,"2020-10-15","C. Hartz","Suppression de \"Privacy Shield\" de la liste des garanties"]
[15,"2021-05-24","C. Hartz","Adaptation à la v5.0 :\n- origine de la collecte : (0 - aucune, 1 - Collecte directe, 2 - Collecte indirecte, 3 - les deux (indirecte et directe)\n- ajout d'un 7ème fondement\n- mesure de \"Pseudonymisation\" (insertion de 1 colonne avant la colonne GT)\n- exonération d'AIPD + justification (en colonne )"]
[16,"2022-01-03","C. Hartz","Utilisation de la colonne \"référence\" du domaine pour le service"]

{"sheet":"Reference","index":4,"n_rows":211,"n_cols":27,"rows_kept":211,"cut":false,"hidden":true,"merged":[]}
["Choix de la langue :","fr","<= choisir",null,"id","Pays","Countries","Land","adequacy",null,"id","Fondement","Lawfulness","Rechtmatigheid",null,null,"Id","Mesure","Measure","Beveiligingsmaatregelen","type",null,"Id","Catégories de données","Category of data","PG category","type"]
["Feuille des références :",{"$f":"\"'\"&RIGHT(CELL(cstNomFichier,A1),LEN(CELL(cstNomFichier,A1))-FIND(\"]\",CELL(cstNomFichier,A1)))&\"'!\"","v":"'Reference'!"},null,null,1,"Afghanistan","Afghanistan","Afghanistan","Non adequat",null,1,"Consentement","Consent","Toestemming",null,null,1,"Finalité : finalité déterminée, explicite et légitime","Purpose: specified, explicit and legitimate purpose","Purpose: specified, explicit and legitimate purpose",1,null,1,"Etat-civil, identité, données d'identification","Civil status, identity, identifying information","Burgerlijke staat, identiteit, identificatiegegevens",1]
["Colonne :",{"$f":"IF(lang=\"nl\",4,IF(lang=\"en\",3,2))","v":2},null,null,2,"Afrique du Sud","South Africa","Zuid-Afrika","Non adequat",null,2,"Exécution d'un contrat ou mesures pré-contractuelles","Performance of a contract or pre-contractual clauses","Uitvoering van een contract of precontractuele clausules",null,null,2,"Minimisation : réduction des données à celles strictement nécessaires","Reduction: reduction of data set to that which is strictly necessary","Reduction: reduction of data set to that which is strictly necessary",1,null,2,"Vie personnelle (habitudes de vie, situation familiale, hors données sensibles ou dangereuses...)","Personal life (lifestyle, family situation, other than sensitive or dangerous data)","Persoonlijk leven (levensgewoonten, gezinssituatie, met uitzondering van gevoelige of gevaarlijke gegevens ...)",1]
["Plage Pays :",{"$f":"B$2&IF(lang=\"nl\",\"H2:H\",IF(lang=\"en\",\"G2:G\",\"F2:F\"))&COUNTA($E:$E)","v":"'Reference'!F2:F211"},"pour liste déroulante",null,3,"Albanie","Albania","Albanië","Non adequat",null,3,"Respect d'une obligation légale","Compliance to legal obligation","Naleving van een wettelijke verplichting",null,null,3,"Qualité : préservation de la qualité des données à caractère personnel","Quality: preservation of the quality of personal data","Quality: preservation of the quality of personal data",1,null,3,"Vie professionnelle (CV, scolarité formation professionnelle, distinctions...)","Professional life (résumé, education, professional experience, awards...)","Beroepsleven (CV, onderwijs, beroepsopleiding, onderscheidingen ...)",1]
["Plage Fondement :",{"$f":"B$2&IF(lang=\"nl\",\"N\",IF(lang=\"en\",\"M\",\"L\"))&ROW(K2)&\":\"&IF(lang=\"nl\",\"N\",IF(lang=\"en\",\"M\",\"L\"))&ROW(K9)","v":"'Reference'!L2:L9"},"pour liste déroulante",null,4,"Algérie","Algeria","Algerije","Non adequat",null,4,"Sauvegarde des intérêts vitaux de la personne concernée","Vital interest protection of the data subject","Bescherming van de vitale belangen van de betrokkene persoon",null,null,4,"Durées de conservation : durée nécessaire à l'accomplissement des finalités, à défaut d'une autre obligation légale imposant une conservation plus longue","Retention period: time required to achieve the purposes, by default of a legal requirement of a longer retention period","Retention period: time required to achieve the purposes, by default of a legal requirement of a longer retention period",1,null,4,"Informations d'ordre économique et financier (revenus, situation financière, situation fiscale...)","Economic and financial information (income, financial situation, tax status...)","Economische en financiële informatie (inkomen, financiële situatie, fiscale situatie, enz.)",1]
["Plage Destinataire :",{"$f":"B$2&IF(lang=\"nl\",\"N\",IF(lang=\"en\",\"M\",\"L\"))&ROW(K14)&\":\"&IF(lang=\"nl\",\"N\",IF(lang=\"en\",\"M\",\"L\"))&ROW(K19)","v":"'Reference'!L14:L19"},"pour liste déroulante",null,5,"Allemagne","Germany","Duitsland","UE",null,5,"Exécution d'une mission d'intérêt public","Performing a public interest mission","Vervulling van een taak van algemeen belang",null,null,5,"Information : respect du droit à l'information des personnes concernées","Information: respect of the right to information of the data object","Information: respect of the right to information of the data object",1,null,5,"Données de connexion (adresses IP, journaux d'événements...)","Data connection (IP addresses, access logs)","Verbindingsgegevens (IP-adressen, gebeurtenissenlogboeken, enz.)",1]
["Plage Type de garantie :",{"$f":"B$2&IF(lang=\"nl\",\"N\",IF(lang=\"en\",\"M\",\"L\"))&ROW(K23)&\":\"&IF(lang=\"nl\",\"N\",IF(lang=\"en\",\"M\",\"L\"))&ROW(K30)","v":"'Reference'!L23:L30"},"pour liste déroulante",null,6,"Andorre","Andorra","Andorra","Adequat",null,6,"Intérêt légitime du responsable de traitement","Legitimate interest of the controller","Behartiging van de gerechtvaardigde belangen",null,null,6,"Fondement : Modalités de recueil du consentement ou justification d'un autre fondement assurant la licéité de ce traitement","Modality of consent: consent of the involved persons or a legal basis justifying the processing activity","Modality of consent: consent of the involved persons or a legal basis justifying the processing activity",1,null,6,"Données de localisation (déplacements, données GPS, GSM...)","Location data (movements, GPS data, mobile data)","Locatiegegevens (bewegingen, GPS-gegevens, GSM ...)",1]
["Plage Type de mesure :",{"$f":"B$2&\"K\"&ROW(K34)&\":N\"&ROW(K37)","v":"'Reference'!K34:N37"},"pour traduction",null,7,"Angola","Angola","Angola","Non adequat",null,7,"Exécution d'une mission effectuée par une autorité compétente","Performance of a task by a competent supervisory authority","Uitvoering van een taak door een competente autoriteit",null,null,7,"Droit d'opposition : respect du droit d'opposition des personnes concernées","Right to oppose: respect for the right of the data object to oppose","Right to oppose: respect for the right of the data object to oppose",1,null,7,"Coordonnées bancaires","Banking details","Bankgegevens",2]
["Plage Mesure :",{"$f":"B$2&\"Q2:T\"&COUNTA($Q:$Q)","v":"'Reference'!Q2:T47"},"pour traduction",null,8,"Antigua-et-Barbuda","Antigua and Barbuda","Antigua en Barbuda","Non adequat",null,null,null,null,null,null,null,8,"Droit d'accès : respect du droit des personnes concernées d'accéder à leurs données","Right of access: respect for the right of the data object to access their data","Right of access: respect for the right of the data object to access their data",1,null,8,"Données révélant l'origine raciale ou ethnique","Data revealing race and ethnic group","Gegevens waaruit de raciale of etnische afkomst blijkt",3]
["Plage Catégorie données :",{"$f":"B$2&\"W2:Z\"&COUNTA($W:$W)","v":"'Reference'!W2:Z19"},"pour traduction",null,9,"Arabie saoudite","Saudi Arabia","Saoedi-Arabië","Non adequat",null,null,null,null,null,null,null,9,"Droit de rectification : respect du droit des personnes concernées de corriger leurs données et de les effacer","Right of rectification: right of the data object to correct and delete their data","Right of rectification: right of the data object to correct and delete their data",1,null,9,"Données révélant les opinions politiques","Data revealing political affiliations","Gegevens waaruit de politieke opvattingen blijken",3]
["Plage Rôle :",{"$f":"B$2&\"K\"&ROW(K41)&\":N\"&ROW(K42)","v":"'Reference'!K41:N42"},"pour traduction",null,10,"Argentine","Argentina","Argentinië","Adequat",null,null,null,null,null,null,null,10,"Transferts : respect des obligations en matière de transfert de données en dehors de l'Union européenne","Transfers: compliance with obligations related to data transfer outside of the European Union countries","Transfers: compliance with obligations related to data transfer outside of the European Union countries",1,null,10,"Données révélant les convictions religieuses ou philosophiques","Data revealing religious or philosophical beliefs","Gegevens waaruit religieuze of filosofische overtuigingen blijken",3]
["Plage Source :",{"$f":"B$2&\"K\"&ROW(K46)&\":N\"&ROW(K49)","v":"'Reference'!K46:N49"},"pour traduction",null,11,"Arménie","Armenia","Armenië","Non adequat",null,null,null,null,null,null,null,11,"Formalités : définition et accomplissement des formalités préalables applicables au traitement","Formalities: definition and completion of formalities to be achieved before the processing activity","Formalities: definition and completion of formalities to be achieved before the processing activity",1,null,11,"Données révélant l'appartenance syndicale","Data revealing trade union memberships","Gegevens waaruit het lidmaatschap van een vakbond blijkt",3]
["Plage Oui Non :",{"$f":"B$2&\"K\"&ROW(K53)&\":N\"&ROW(K54)","v":"'Reference'!K53:N54"},"pour traduction",null,12,"Australie","Australia","Australië","Non adequat",null,"id","Type de destinataires","Nature of recipient","Categorieën van ontvangers",null,null,41,"Droit à la portabilité : respect du droit à la portabilité des données à caractère personnel","Right to portability : respect for the right of the data subject to receive their personal data","Right to portability : respect for the right of the data subject to receive their personal data",1,null,12,"Données génétiques","Genetic information","Genetische gegevens",3]
[null,null,null,null,13,"Autriche","Austria","Oostenrijk","UE",null,1,"Service interne qui traite les données","Internal department which processes the data","Interne afdeling die de gegevens verwerkt",null,null,42,"Droit à la limitation : respect du droit à la limitation des traitements des données à caractère personnel","Right to restriction : respect for the right of the data subject to obtain restriction of processing","Right to restriction : respect for the right of the data subject to obtain restriction of processing",1,null,13,"Données biométriques aux fins d'identifier une personne physique de manière unique","Biometric data in order to identify a unique person","Biometrische gegevens voor de unieke identificatie van een natuurlijke persoon",3]
["Feuille des entités :",{"$f":"\"'\"&RIGHT(CELL(cstNomFichier,Entités!A1),LEN(CELL(cstNomFichier,Entités!A1))-FIND(\"]\",CELL(cstNomFichier,Entités!A1)))&\"'!\"","v":"'Entités'!"},null,null,14,"Azerbaïdjan","Azerbaijan","Azerbeidzjan","Non adequat",null,2,"Sous-traitants","Processors","Onderaannemers",null,null,43,"Droit à l'effacement","Right to erasure","Right to erasure",1,null,14,"Données concernant la santé","Health data","Gezondheidsgegevens",3]
["Plage des entités :",{"$f":"B$15&\"B2:B\"&(COUNTA(Entités!B:B))","v":"'Entités'!B2:B21"},null,null,15,"Bahamas","Bahamas (the)","Bahama's","Non adequat",null,3,"Destinataires dans des pays tiers ou organisations internationales","Recipients in third countries or international organisations","Ontvangers in derde landen of internationale organisaties",null,null,44,"Droit à ne pas faire l'objet d'une décision entièrement automatisée","Right not to be the subject of a fully automated decision","Right not to be the subject of a fully automated decision",1,null,15,"Données concernant la vie sexuelle ou l'orientation sexuelle ","Data on sex life and sexual orientation","Gegevens over seksleven of seksuele geaardheid",3]
[null,null,null,null,16,"Bahreïn","Bahrain","Bahrein","Non adequat",null,4,"Partenaires institutionnels ou commerciaux","Institutional or commercial partners","Institutionele of commerciële partners",null,null,45,"Obligation d'assurer la chaîne des droits","Obligation to insure the chain of rights","Obligation to insure the chain of rights",1,null,16,"Données relatives à des condamnations pénales ou  infractions","Data on criminal convictions or offences","Gegevens over strafrechtelijke veroordelingen of strafbare feiten",3]
[null,null,null,null,17,"Bangladesh","Bangladesh","Bangladesh","Non adequat",null,5,"Autre (Préciser)","Other (pls specify)","Anders (specificeer aub)",null,null,12,"Organisation","Organisation","Organisation",2,null,17,"Numéro d'identification  national unique (NIR pour la France)","Individual national identification number","Uniek nationaal identificatienummer (NIR voor Frankrijk)",3]
["Constante Excel pour les références de cellule",null,null,null,18,"Barbade","Barbados","Barbados","Non adequat",null,null,null,null,null,null,null,13,"Politique (gestion des règles)","Policy (rules management)","Policy (rules management)",2,null,200,"Autre","Other","Andere",1]
["adresse de la cellule :",{"$f":"IF(ISERR(CELL(C20,A20)),D20,C20)","v":"adresse"},"adresse","address",19,"Belgique","Belgium","België","UE",null,null,null,null,null,null,null,14,"Gestion des risques","Risk management","Risk management",2]
["nom du fichier :",{"$f":"IF(ISERR(CELL(C21,A21)),D21,C21)","v":"nomfichier"},"nomfichier","filename",20,"Belize","Belize","Belize","Non adequat",null,null,null,null,null,null,null,15,"Gestion des projets","Project management","Project management",2]
[null,null,null,null,21,"Bénin","Benin","Benin","Non adequat",null,"id","Type de garanties","PD protection type","PG type garantie",null,null,16,"Gestion des incidents et des violations de données","Management of incidents and data breaches","Management of incidents and data breaches",2]
[null,null,null,null,22,"Bermudes","Bermuda","Bermuda","Non adequat",null,10,"Clauses Contractuelles Types (CCT)","Standard contractual clauses","Doorgifte op basis van passende waarborgen (SCC)",null,null,17,"Gestion des personnels","Management of human resources","Management of human resources",2]
[null,null,null,null,23,"Bhoutan","Bhutan","Bhutan","Non adequat",null,20,"Règles d'entreprise contraignantes (BCR)","Binding Corporate Rules","Doorgifte op basis van passende waarborgen (BCR)",null,null,18,"Encadrement des relations avec les tiers","Relationships with third parties","Relationships with third parties",2]
["FR","EN","NL",null,24,"Biélorussie","Belarus","Wit-Rusland","Non adequat",null,40,"Code de conduite","Code of Conduct","Gedragsregels",null,null,19,"Maintenance","Maintenance","Maintenance",2]
["ONGLETS","TABS","TABS",null,25,"Birmanie","Myanmar","Birma","Non adequat",null,50,"Certification","Certification","Certificering",null,null,20,"Supervision (audits, tableaux de bord...)","Supervision (audits, dashboards)","Supervision (audits, dashboards)",2]
["MODELE FICHE","RECORD TEMPLATE","RECORDSJABLOON",null,26,"Bolivie","Bolivia (Plurinational State of)","Bolivia","Non adequat",null,60,"Dérogation (art 49)","Derogation (art 49)","Afwijking (art 49)",null,null,21,"Marquage des documents","Marking documents","Marking documents",2]
["Registre","Register","Register",null,27,"Bosnie-Herzégovine","Bosnia and Herzegovina","Bosnië en Herzegovina","Non adequat",null,70,"Décision d'adéquation","Adequacy decision","Doorgifte op basis van een adequaatsheidbesluit",null,null,22,"Archivage","Archiving","Archiving",2]
["ENTITE","ENTITIES","ENTITEITEN",null,28,"Botswana","Botswana","Botswana","Non adequat",null,null,null,null,null,null,null,23,"Anonymisation","Anonymization","Anonymization",3]
["SAUVER FICHE DE TAITEMENT","SAVE RECORD","RECORD OPNEMEN",null,29,"Brésil","Brazil","Brazilië","Non adequat",null,null,null,null,null,null,null,24,"Chiffrement","Encryption","Encryption",3]
["CHARGER FICHE DE TAITEMENT","DOWNLOAD RECORD","RECORD LADEN ",null,30,"Brunei","Brunei Darussalam","Brunei","Non adequat",null,null,null,null,null,null,null,25,"Contrôle d'intégrité","Integrity verification","Integrity verification",3]
[null,null,null,null,31,"Bulgarie","Bulgaria","Bulgarije","UE",null,null,null,null,null,null,null,26,"Sauvegardes","Backups","Backups",3]
[null,null,null,null,32,"Burkina Faso","Burkina Faso","Burkina Faso","Non adequat",null,"id","Type de mesures",null,null,null,null,27,"Cloisonnement (données, réseau)","Compartmentalisation of data/network","Compartmentalisation of data/network",3]
[null,null,null,null,33,"Burundi","Burundi","Burundi","Non adequat",null,1,"Mesures de nature juridique","Legal measures","Juridische maatregelen",null,null,28,"Contrôle d'accès logique","Logical access control","Logical access control",3]
["Table de référence","SQL de MAJ",null,null,34,"Cambodge","Cambodia","Cambodja","Non adequat",null,2,"Mesures organisationnelles","Organisational measures","Organisatorische maatregelen",null,null,29,"Traçabilité","Tracability","Tracability",3]
["mesure_ref_pdc","select PDC.id_point_de_controle, PDC.libelle, PDC_EN.libelle as libelle_en, PDC_NL.libelle as libelle_nl, type\nfrom mesure_ref_pdc PDC\nleft join (select id_item, libelle from traduction where tbl = 'mesure_ref_pdc' and col = 'libelle' and langue = 'en') PDC_EN on (PDC_EN.id_item = PDC.id_point_de_controle);\nleft join (select id_item, libelle from traduction where tbl = 'mesure_ref_pdc' and col = 'libelle' and langue = 'nl') PDC_NL on (PDC_NL.id_item = PDC.id_point_de_controle)\norder by PDC.type, PDC.id_point_de_controle",null,null,35,"Cameroun","Cameroon","Kameroen","Non adequat",null,3,"Mesures de sécurité logique","Logical security measures","Logische beveiligingsmaatregelen",null,null,30,"Exploitation","Exploitation/processing","Exploitation/processing",3]
["ref_fondement","select R.id_fondement, R.libelle, R_EN.libelle as libelle_en, R_NL.libelle as libelle_nl\nfrom ref_fondement R\nleft join (select id_item, libelle from traduction where tbl = 'ref_fondement' and col = 'libelle' and langue = 'en') R_EN on (R_EN.id_item = R.id_fondement)\nleft join (select id_item, libelle from traduction where tbl = 'ref_fondement' and col = 'libelle' and langue = 'nl') R_NL on (R_NL.id_item = R.id_fondement)\norder by R.id_fondement;\n",null,null,36,"Canada","Canada","Canada","Adequat",null,4,"Mesures de sécurité physique","Physical security measures","Fysieke beveiligingsmaatregelen",null,null,31,"Surveillance (paramétrages, contrôles de configurations, surveillance en temps réel...)","Monitoring (settings, configuration control, real-time monitoring)","Monitoring (settings, configuration control, real-time monitoring)",3]
["ref_type_destinataire","select R.id, R.libelle, R_EN.libelle as libelle_en, R_NL.libelle as libelle_nl\nfrom ref_type_destinataire R\nleft join (select id_item, libelle from traduction where tbl = 'ref_type_destinataire' and col = 'libelle' and langue = 'en') R_EN on (R_EN.id_item = R.id)\nleft join (select id_item, libelle from traduction where tbl = 'ref_type_destinataire' and col = 'libelle' and langue = 'nl') R_NL on (R_NL.id_item = R.id)\norder by R.id;",null,null,37,"Cap-Vert","Cabo Verde","Kaapverdië","Non adequat",null,null,null,null,null,null,null,32,"Gestion des postes de travail","Desktop management","Desktop management",3]
[null,null,null,null,38,"Chili","Chile","Chili","Non adequat",null,null,null,null,null,null,null,33,"Lutte contre les codes malveillants (virus, logiciels espions, bombes logicielles...)","Malicious codes struggle (against viruses, spywares, time bombs)","Malicious codes struggle (against viruses, spywares, time bombs)",3]
[null,null,null,null,39,"Chine","China","China","Non adequat",null,"id","Rôle",null,null,null,null,34,"Protection des canaux informatiques (réseaux)","Protection of information channels (networks)","Protection of information channels (networks)",3]
[null,null,null,null,40,"Chypre","Cyprus","Cyprus","UE",null,0,"Responsable de traitement","Data Controller","Verwerkingsverantwoordelijke",null,null,46,"Pseudonymisation","Pseudonymisation","Pseudonymisation",3]
[null,null,null,null,41,"Colombie","Colombia","Colombia","Non adequat",null,1,"Sous-traitant","Data Processor","Verwerker",null,null,35,"Éloignement des sources de risques (produits dangereux, zones géographiques dangereuses...)","Distance from sources of risk (dangerous products, dangerous geographical zones...)","Distance from sources of risk (dangerous products, dangerous geographical zones...)",4]
[null,null,null,null,42,"Comores","Comoros (the)","Comoren","Non adequat",null,null,null,null,null,null,null,36,"Contrôle d'accès physique","Physical access control","Physical access control",4]
[null,null,null,null,43,"Congo","Congo (the)","Congo","Non adequat",null,null,null,null,null,null,null,37,"Sécurité des matériels","Safety of materials/equipment","Safety of materials/equipment",4]
[null,null,null,null,44,"Corée du Nord","Korea (the Democratic People's Republic of)","Noord-Korea","Non adequat",null,"id","Source de la collecte",null,null,null,null,38,"Sécurité des documents papier","Safety of paper documents","Safety of paper documents",4]
[null,null,null,null,45,"Corée du Sud","Korea (the Republic of)","Zuid-Korea","Non adequat",null,0,"Non déterminée","Undefined","Verwerkingsverantwoordelijke",null,null,39,"Sécurité des canaux papier","Security of paper channels","Security of paper channels",4]
[null,null,null,null,46,"Costa Rica","Costa Rica","Costa Rica","Non adequat",null,1,"Collecte directe","Data collected from the data subject",null,null,null,40,"Protection contre les sources de risques non humaines (feu, eau...)","Protection from non-human risk sources (fire, water..)","Protection from non-human risk sources (fire, water..)",4]
[null,null,null,null,47,"Côte d'Ivoire","Côte d'Ivoire","Ivoorkust","Non adequat",null,2,"Collecte indirecte","Data not obtained from the data subject"]
[null,null,null,null,48,"Croatie","Croatia","Kroatië","UE",null,3,"Les deux","Both","Verwerker"]
[null,null,null,null,49,"Cuba","Cuba","Cuba","Non adequat"]
[null,null,null,null,50,"Danemark","Denmark","Denemarken","UE"]
[null,null,null,null,51,"Djibouti","Djibouti","Djibouti","Non adequat",null,"id","Oui/Non"]
[null,null,null,null,52,"Dominique","Dominica","Dominica","Non adequat",null,0,"Non","No","Nee"]
[null,null,null,null,53,"Egypte","Egypt","Egypte","Non adequat",null,1,"Oui","Yes","Ja"]
[null,null,null,null,54,"Emirats arabes unis","United Arab Emirates (the)","Verenigde Arabische Emiraten","Non adequat"]
[null,null,null,null,55,"Equateur","Ecuador","Ecuador","Non adequat"]
[null,null,null,null,56,"Erythrée","Eritrea","Eritrea","Non adequat"]
[null,null,null,null,57,"Espagne","Spain","Spanje","UE"]
[null,null,null,null,58,"Estonie","Estonia","Estland","UE"]
[null,null,null,null,59,"Etats-Unis","United States of America (the)","Verenigde Staten","Adequat"]
[null,null,null,null,60,"Éthiopie","Ethiopia","Ethiopië","Non adequat"]
[null,null,null,null,61,"Fidji","Fiji","Fiji","Non adequat"]
[null,null,null,null,62,"Finlande","Finland","Finland","UE"]
[null,null,null,null,63,"France","France","Frankrijk","UE"]
[null,null,null,null,64,"Gabon","Gabon","Gabon","Non adequat"]
[null,null,null,null,65,"Gambie","Gambia (the)","Gambia","Non adequat"]
[null,null,null,null,66,"Géorgie","Georgia","Georgië","Non adequat"]
[null,null,null,null,67,"Ghana","Ghana","Ghana","Non adequat"]
[null,null,null,null,68,"Gibraltar","Gibraltar","Gibraltar","Non adequat"]
[null,null,null,null,69,"Grèce","Greece","Griekenland","UE"]
[null,null,null,null,70,"Grenade","Grenada","Grenada","Non adequat"]
[null,null,null,null,71,"Groenland","Greenland","Groenland","Non adequat"]
[null,null,null,null,72,"Guatemala","Guatemala","Guatemala","Non adequat"]
[null,null,null,null,73,"Guernesey","Guernsey","Guernsey","Adequat"]
[null,null,null,null,74,"Guinée","Guinea","Guinee","Non adequat"]
[null,null,null,null,75,"Guinée équatoriale","Equatorial Guinea","Equatoriaal-Guinea","Non adequat"]
[null,null,null,null,76,"Guinée-Bissau","Guinea-Bissau","Guinee-Bissau","Non adequat"]
[null,null,null,null,77,"Guyana","Guyana","Guyana","Non adequat"]
[null,null,null,null,78,"Haïti","Haiti","Haïti","Non adequat"]
[null,null,null,null,79,"Honduras","Honduras","Honduras","Non adequat"]
[null,null,null,null,80,"Hong-Kong","Hong Kong","Hong Kong","Non adequat"]
[null,null,null,null,81,"Hongrie","Hungary","Hongarije","UE"]
[null,null,null,null,82,"Ile de Man","Isle of Man","Eiland Man","Adequat"]
[null,null,null,null,83,"Iles FEROE","Faroe Islands (the)","FEROE-eilanden","Adequat"]
[null,null,null,null,84,"Inde","India","India","Non adequat"]
[null,null,null,null,85,"Indonésie","Indonesia","Indonesië","Non adequat"]
[null,null,null,null,86,"Iraq","Iraq","Irak","Non adequat"]
[null,null,null,null,87,"Iran","Iran (Islamic Republic of)","Iran","Non adequat"]
[null,null,null,null,88,"Irlande","Ireland","Ierland","UE"]
[null,null,null,null,89,"Islande","Iceland","IJsland","EEE"]
[null,null,null,null,90,"Israël","Israel","Israël","Adequat"]
[null,null,null,null,91,"Italie","Italy","Italië","UE"]
[null,null,null,null,92,"Jamaïque","Jamaica","Jamaica","Non adequat"]
[null,null,null,null,93,"Japon","Japan","Japan","Non adequat"]
[null,null,null,null,94,"Jersey","Jersey","Jersey","Adequat"]
[null,null,null,null,95,"Jordanie","Jordan","Jordanië","Non adequat"]
[null,null,null,null,96,"Kazakhstan","Kazakhstan","Kazachstan","Non adequat"]
[null,null,null,null,97,"Kenya","Kenya","Kenia","Non adequat"]
[null,null,null,null,98,"Kirghizstan","Kyrgyzstan","Kirgizië","Non adequat"]
[null,null,null,null,99,"Kiribati","Kiribati","Kiribati","Non adequat"]
[null,null,null,null,100,"Kosovo","Kosovo","Kosovo","Non adequat"]
[null,null,null,null,101,"Koweït","Kuwait","Koeweit","Non adequat"]
[null,null,null,null,102,"Laos","Lao People's Democratic Republic (the)","Laos","Non adequat"]
[null,null,null,null,103,"Lesotho","Lesotho","Lesotho","Non adequat"]
[null,null,null,null,104,"Lettonie","Latvia","Letland","UE"]
[null,null,null,null,105,"Liban","Lebanon","Libanon","Non adequat"]
[null,null,null,null,106,"Liberia","Liberia","Liberia","Non adequat"]
[null,null,null,null,107,"Libye","Libya","Libië","Non adequat"]
[null,null,null,null,108,"Liechtenstein","Liechtenstein","Liechtenstein","EEE"]
[null,null,null,null,109,"Lituanie","Lithuania","Litouwen","UE"]
[null,null,null,null,110,"Luxembourg","Luxembourg","Luxemburg","UE"]
[null,null,null,null,111,"Macédoine","Macedonia (the former Yugoslav Republic of)","Macedonië","Non adequat"]
[null,null,null,null,112,"Madagascar","Madagascar","Madagaskar","Non adequat"]
[null,null,null,null,113,"Malaisie","Malaysia","Maleisië","Non adequat"]
[null,null,null,null,114,"Malawi","Malawi","Malawi","Non adequat"]
[null,null,null,null,115,"Maldives","Maldives","Malediven","Non adequat"]
[null,null,null,null,116,"Mali","Mali","Mali","Non adequat"]
[null,null,null,null,117,"Malte","Malta","Malta","UE"]
[null,null,null,null,118,"Maroc","Morocco","Marokko","Non adequat"]
[null,null,null,null,119,"Marshall","Marshall Islands (the)","Marshall","Non adequat"]
[null,null,null,null,120,"Martinique","Martinique","Martinique","UE"]
[null,null,null,null,121,"Maurice","Mauritius","Mauritius","Non adequat"]
[null,null,null,null,122,"Mauritanie","Mauritania","Mauritanië","Non adequat"]
[null,null,null,null,123,"Mayotte","Mayotte","Mayotte","UE"]
[null,null,null,null,124,"Mexique","Mexico","Mexico","Non adequat"]
[null,null,null,null,125,"Micronésie","Micronesia (Federated States of)","Micronesië","Non adequat"]
[null,null,null,null,126,"Moldavie","Moldova (the Republic of)","Moldavië","Non adequat"]
[null,null,null,null,127,"Monaco","Monaco","Monaco","Non adequat"]
[null,null,null,null,128,"Mongolie","Mongolia","Mongolië","Non adequat"]
[null,null,null,null,129,"Monténégro","Montenegro","Montenegro","Non adequat"]
[null,null,null,null,130,"Mozambique","Mozambique","Mozambique","Non adequat"]
[null,null,null,null,131,"Namibie","Namibia","Namibië","Non adequat"]
[null,null,null,null,132,"Nauru","Nauru","Nauru","Non adequat"]
[null,null,null,null,133,"Népal","Nepal","Nepal","Non adequat"]
[null,null,null,null,134,"Nicaragua","Nicaragua","Nicaragua","Non adequat"]
[null,null,null,null,135,"Niger","Niger (the)","Niger","Non adequat"]
[null,null,null,null,136,"Nigeria","Nigeria","Nigeria","Non adequat"]
[null,null,null,null,137,"Norvège","Norway","Noorwegen","EEE"]
[null,null,null,null,138,"Nouvelle-Zélande","New Zealand","Nieuw-Zeeland","Adequat"]
[null,null,null,null,139,"Oman","Oman","Oman","Non adequat"]
[null,null,null,null,140,"Ouganda","Uganda","Oeganda","Non adequat"]
[null,null,null,null,141,"Ouzbékistan","Uzbekistan","Oezbekistan","Non adequat"]
[null,null,null,null,142,"Pakistan","Pakistan","Pakistan","Non adequat"]
[null,null,null,null,143,"Palaos","Palau","Palau","Non adequat"]
[null,null,null,null,144,"Palestine","Palestine, State of","Palestina","Non adequat"]
[null,null,null,null,145,"Panama","Panama","Panama","Non adequat"]
[null,null,null,null,146,"Papouasie-Nouvelle-Guinée","Papua New Guinea","Papoea-Nieuw-Guinea","Non adequat"]
[null,null,null,null,147,"Paraguay","Paraguay","Paraguay","Non adequat"]
[null,null,null,null,148,"Pays-Bas","Netherlands (the)","Nederland","UE"]
[null,null,null,null,149,"Pérou","Peru","Peru","Non adequat"]
[null,null,null,null,150,"Philippines","Philippines (the)","Filippijnen","Non adequat"]
[null,null,null,null,151,"Pologne","Poland","Polen","UE"]
[null,null,null,null,152,"Polynésie Française","French Polynesia","Frans Polynesië","UE"]
[null,null,null,null,153,"Porto Rico","Puerto Rico","Puerto Rico","Non adequat"]
[null,null,null,null,154,"Portugal","Portugal","Portugal","UE"]
[null,null,null,null,155,"Qatar","Qatar","Qatar","Non adequat"]
[null,null,null,null,156,"Rép. dém. du Congo","Congo (the Democratic Republic of the)","Dem. Rep. van Congo","Non adequat"]
[null,null,null,null,157,"République Centrafricaine","Central African Republic (the)","Centraal-Afrikaanse Republiek","Non adequat"]
[null,null,null,null,158,"République Dominicaine","Dominican Republic (the)","Dominicaanse Republiek","Non adequat"]
[null,null,null,null,159,"République Tchèque","Czechia","Tsjechische Republiek","UE"]
[null,null,null,null,160,"Roumanie","Romania","Roemenië","UE"]
[null,null,null,null,161,"Royaume-Uni","United Kingdom of Great Britain and Northern Ireland (the)","Verenigd Koninkrijk","UE"]
[null,null,null,null,162,"Russie","Russian Federation (the)","Rusland","Non adequat"]
[null,null,null,null,163,"Rwanda","Rwanda","Rwanda","Non adequat"]
[null,null,null,null,164,"Sahara Occidental","Western Sahara","Westelijke Sahara","Non adequat"]
[null,null,null,null,165,"Saint-Christophe-et-Niévès","Saint Kitts and Nevis","Saint Kitts en Nevis","Non adequat"]
[null,null,null,null,166,"Sainte-Lucie","Saint Lucia","Heilige Lucia","Non adequat"]
[null,null,null,null,167,"Saint-Marin","San Marino","San Marino","Non adequat"]
[null,null,null,null,168,"Saint-Vincent-et-les Grenadines","Saint Vincent and the Grenadines","Saint Vincent en de Grenadines","Non adequat"]
[null,null,null,null,169,"Salomon","Solomon Islands","Solomon","Non adequat"]
[null,null,null,null,170,"Salvador","El Salvador","El Salvador","Non adequat"]
[null,null,null,null,171,"Samoa","Samoa","Samoa","Non adequat"]
[null,null,null,null,172,"Sao Tomé-et-Principe","Sao Tome and Principe","Sao Tomé en Principe","Non adequat"]
[null,null,null,null,173,"Sénégal","Senegal","Senegal","Non adequat"]
[null,null,null,null,174,"Serbie","Serbia","Servië","Non adequat"]
[null,null,null,null,175,"Seychelles","Seychelles","Seychellen","Non adequat"]
[null,null,null,null,176,"Sierra Leone","Sierra Leone","Sierra Leone","Non adequat"]
[null,null,null,null,177,"Singapour","Singapore","Singapore","Non adequat"]
[null,null,null,null,178,"Slovaquie","Slovakia","Slowakije Slowakije","UE"]
[null,null,null,null,179,"Slovénie","Slovenia","Slovenië","UE"]
[null,null,null,null,180,"Somalie","Somalia","Somalië","Non adequat"]
[null,null,null,null,181,"Soudan","Sudan (the)","Soedan","Non adequat"]
[null,null,null,null,182,"Soudan du Sud","South Sudan","Zuid-Soedan","Non adequat"]
[null,null,null,null,183,"Sri Lanka","Sri Lanka","Sri Lanka","Non adequat"]
[null,null,null,null,184,"Suède","Sweden","Zweden","EEE"]
[null,null,null,null,185,"Suisse","Switzerland","Zwitserland","Adequat"]
[null,null,null,null,186,"Suriname","Suriname","Suriname","Non adequat"]
[null,null,null,null,187,"Swaziland","Swaziland","Swaziland","Non adequat"]
[null,null,null,null,188,"Syrie","Syrian Arab Republic","Syrië","Non adequat"]
[null,null,null,null,189,"Tadjikistan","Tajikistan","Tadzjikistan","Non adequat"]
[null,null,null,null,190,"Taiwan","Taiwan (Province of China)","Taiwan","Non adequat"]
[null,null,null,null,191,"Tanzanie","Tanzania, United Republic of","Tanzania","Non adequat"]
[null,null,null,null,192,"Tchad","Chad","Tsjaad","Non adequat"]
[null,null,null,null,193,"Terres Australes françaises","French Southern Territories (the)","Franse Zuidelijke Gebieden","UE"]
[null,null,null,null,194,"Thaïlande","Thailand","Thailand","Non adequat"]
[null,null,null,null,195,"Timor oriental","Timor-Leste","Oost-Timor","Non adequat"]
[null,null,null,null,196,"Togo","Togo","Togo","Non adequat"]
[null,null,null,null,197,"Tonga","Tonga","Tonga","Non adequat"]
[null,null,null,null,198,"Trinité-et-Tobago","Trinidad and Tobago","Trinidad en Tobago","Non adequat"]
[null,null,null,null,199,"Tunisie","Tunisia","Tunesië","Non adequat"]
[null,null,null,null,200,"Turkménistan","Turkmenistan","Turkmenistan","Non adequat"]
[null,null,null,null,201,"Turquie","Turkey","Turkije","Non adequat"]
[null,null,null,null,202,"Tuvalu","Tuvalu","Tuvalu","Non adequat"]
[null,null,null,null,203,"Ukraine","Ukraine","Oekraïne","Non adequat"]
[null,null,null,null,204,"Uruguay","Uruguay","Uruguay","Adequat"]
[null,null,null,null,205,"Vanuatu","Vanuatu","Vanuatu","Non adequat"]
[null,null,null,null,206,"Venezuela","Venezuela (Bolivarian Republic of)","Venezuela","Non adequat"]
[null,null,null,null,207,"Viêt Nam","Viet Nam","Vietnam","Non adequat"]
[null,null,null,null,208,"Yémen","Yemen","Jemen","Non adequat"]
[null,null,null,null,209,"Zambie","Zambia","Zambia","Non adequat"]
[null,null,null,null,210,"Zimbabwe","Zimbabwe","Zimbabwe","Non adequat"]

{"sheet":"Param","index":5,"n_rows":238,"n_cols":11,"rows_kept":238,"cut":false,"hidden":true,"merged":[]}
["fr","en","nl","Liste (colonne)","Fiche (cellule)","Config copie","Check cellule","Nom colonne","Cohérence des données"]
["Description  du traitement  ","Processing activity overall description","Algemene beschrijving van de verwerking",1,{"$f":"CELL(cstAdresse,'MODELE FICHE'!C2)","v":"'[Fiche de traitement-questionnaires + entretiens.xlsm]MODELE FICHE'!$C$2"},null,{"$f":"ISERR(E2)","v":false},{"$f":"IF($D2<=26,\"\",CHAR(64+INT(($D2-1)/26)))&CHAR(65+MOD($D2-1,26))","v":"A"},"Onglet Listing :",{"$f":"COUNTA(Registre!1:1)","v":237}]
["Nom / sigle","Name","Verwerkingsactiviteit naam",2,{"$f":"CELL(cstAdresse,'MODELE FICHE'!C3)","v":"'[Fiche de traitement-questionnaires + entretiens.xlsm]MODELE FICHE'!$C$3"},null,{"$f":"ISERR(E3)","v":false},{"$f":"IF($D3<=26,\"\",CHAR(64+INT(($D3-1)/26)))&CHAR(65+MOD($D3-1,26))","v":"B"},"Onglet Param :",{"$f":"COUNTA(B:B)","v":238}]
["N° / REF","ID","Verwijzing",3,{"$f":"CELL(cstAdresse,'MODELE FICHE'!C4)","v":"'[Fiche de traitement-questionnaires + entretiens.xlsm]MODELE FICHE'!$C$4"},null,false,"C","Ecart :",{"$f":"J2-J3","v":-1},"Correction : faire un transposé des lignes de param sur Listing"]
["Traitement envisagé","Proposed processing","Geplande verwerkingen",4,{"$f":"CELL(cstAdresse,'MODELE FICHE'!C5)","v":"'[Fiche de traitement-questionnaires + entretiens.xlsm]MODELE FICHE'!$C$5"},null,{"$f":"ISERR(E5)","v":false},"D"]
["Rôle","Role","Functie",5,{"$f":"CELL(cstAdresse,'MODELE FICHE'!C6)","v":"'[Fiche de traitement-questionnaires + entretiens.xlsm]MODELE FICHE'!$C$6"},null,{"$f":"ISERR(E6)","v":false},"E"]
["Origine de la collecte des données","Data collection source","Oorsprong van de gegevensverzameling",6,{"$f":"CELL(cstAdresse,'MODELE FICHE'!C7)","v":"'[Fiche de traitement-questionnaires + entretiens.xlsm]MODELE FICHE'!$C$7"},null,{"$f":"ISERR(E7)","v":false},"F"]
["Description de la source","Source description","Beschrijving van de bron",7,{"$f":"CELL(cstAdresse,'MODELE FICHE'!C8)","v":"'[Fiche de traitement-questionnaires + entretiens.xlsm]MODELE FICHE'!$C$8"},null,false,"G"]
["Volumétrie des personnes concernées","Number of data subjects involved","Volumetrie van de betrokkenen",8,{"$f":"CELL(cstAdresse,'MODELE FICHE'!C9)","v":"'[Fiche de traitement-questionnaires + entretiens.xlsm]MODELE FICHE'!$C$9"},null,false,"H"]
["Date de création","Inception date","Creatiedatum",9,{"$f":"CELL(cstAdresse,'MODELE FICHE'!C10)","v":"'[Fiche de traitement-questionnaires + entretiens.xlsm]MODELE FICHE'!$C$10"},null,false,"I","Max colonne :",{"$f":"MAX(D:D)-J3","v":-1},"Correction : recalculer les ID de la colonne B"]
["Mise à jour","Update date","Datum van wijziging",10,{"$f":"CELL(cstAdresse,'MODELE FICHE'!C11)","v":"'[Fiche de traitement-questionnaires + entretiens.xlsm]MODELE FICHE'!$C$11"},null,false,"J","Cellules en erreur :",{"$f":"COUNTIF(G:G,TRUE)","v":0},"Correction : vérifier la présence des cellules dans \"MODELE FICHE\""]
["Entité","Company","Entiteit",11,{"$f":"CELL(cstAdresse,'MODELE FICHE'!C12)","v":"'[Fiche de traitement-questionnaires + entretiens.xlsm]MODELE FICHE'!$C$12"},null,false,"K"]
["Domaine (référence)","Field (reference)","Gebied (referentie)",12,{"$f":"CELL(cstAdresse,'MODELE FICHE'!C13)","v":"'[Fiche de traitement-questionnaires + entretiens.xlsm]MODELE FICHE'!$C$13"},null,false,"L"]
["Structure opérationnelle (référence)","Operational structure (reference)","Operationele structuur (referentie)",13,{"$f":"CELL(cstAdresse,'MODELE FICHE'!C14)","v":"'[Fiche de traitement-questionnaires + entretiens.xlsm]MODELE FICHE'!$C$14"},null,{"$f":"ISERR(E14)","v":false},"M"]
["Nom \nRT","Name\nDC","Naam\nVVW",14,{"$f":"CELL(cstAdresse,'MODELE FICHE'!C17)","v":"'[Fiche de traitement-questionnaires + entretiens.xlsm]MODELE FICHE'!$C$17"},null,false,"N"]
["Adresse \nRT","Address\nDC","Adres\nVVW",15,{"$f":"CELL(cstAdresse,'MODELE FICHE'!D17)","v":"'[Fiche de traitement-questionnaires + entretiens.xlsm]MODELE FICHE'!$D$17"},null,false,"O"]
["CP \nRT","Zip cod\nDC","Postcode\nVVW",16,{"$f":"CELL(cstAdresse,'MODELE FICHE'!E17)","v":"'[Fiche de traitement-questionnaires + entretiens.xlsm]MODELE FICHE'!$E$17"},null,false,"P"]
["Ville \nRT","City\nDC","Stad\nVVW",17,{"$f":"CELL(cstAdresse,'MODELE FICHE'!F17)","v":"'[Fiche de traitement-questionnaires + entretiens.xlsm]MODELE FICHE'!$F$17"},null,false,"Q"]
["Pays \nRT","Country\nDC","Land\nVVW",18,{"$f":"CELL(cstAdresse,'MODELE FICHE'!G17)","v":"'[Fiche de traitement-questionnaires + entretiens.xlsm]MODELE FICHE'!$G$17"},null,false,"R"]
["Tel \nRT","Phone #\nDC","Telefoon #\nVVW",19,{"$f":"CELL(cstAdresse,'MODELE FICHE'!H17)","v":"'[Fiche de traitement-questionnaires + entretiens.xlsm]MODELE FICHE'!$H$17"},null,false,"S"]
["Nom \nDPO","Name\nDPO","Naam\nFGB",20,{"$f":"CELL(cstAdresse,'MODELE FICHE'!C18)","v":"'[Fiche de traitement-questionnaires + entretiens.xlsm]MODELE FICHE'!$C$18"},null,false,"T"]
["Adresse \nDPO","Address\nDPO","Adres\nFGB",21,{"$f":"CELL(cstAdresse,'MODELE FICHE'!D18)","v":"'[Fiche de traitement-questionnaires + entretiens.xlsm]MODELE FICHE'!$D$18"},null,false,"U"]
["CP \nDPO","Zip cod\nDPO","Postcode\nFGB",22,{"$f":"CELL(cstAdresse,'MODELE FICHE'!E18)","v":"'[Fiche de traitement-questionnaires + entretiens.xlsm]MODELE FICHE'!$E$18"},null,false,"V"]
["Ville \nDPO","City\nDPO","Stad\nFGB",23,{"$f":"CELL(cstAdresse,'MODELE FICHE'!F18)","v":"'[Fiche de traitement-questionnaires + entretiens.xlsm]MODELE FICHE'!$F$18"},null,false,"W"]
["Pays \nDPO","Country\nDPO","Land\nFGB",24,{"$f":"CELL(cstAdresse,'MODELE FICHE'!G18)","v":"'[Fiche de traitement-questionnaires + entretiens.xlsm]MODELE FICHE'!$G$18"},null,false,"X"]
["Tel \nDPO","Phone #\nDPO","Telefoon #\nFGB",25,{"$f":"CELL(cstAdresse,'MODELE FICHE'!H18)","v":"'[Fiche de traitement-questionnaires + entretiens.xlsm]MODELE FICHE'!$H$18"},null,false,"Y"]
["Nom \nReprésentant","Name\nDeputy","Naam\nVertegenwoordiger",26,{"$f":"CELL(cstAdresse,'MODELE FICHE'!C19)","v":"'[Fiche de traitement-questionnaires + entretiens.xlsm]MODELE FICHE'!$C$19"},null,false,"Z"]
["Adresse \nReprésentant","Address\nDeputy","Adres\nVertegenwoordiger",27,{"$f":"CELL(cstAdresse,'MODELE FICHE'!D19)","v":"'[Fiche de traitement-questionnaires + entretiens.xlsm]MODELE FICHE'!$D$19"},null,false,"AA"]
["CP \nReprésentant","Zip cod\nDeputy","Postcode\nVertegenwoordiger",28,{"$f":"CELL(cstAdresse,'MODELE FICHE'!E19)","v":"'[Fiche de traitement-questionnaires + entretiens.xlsm]MODELE FICHE'!$E$19"},null,false,"AB"]
["Ville \nReprésentant","City\nDeputy","Stad\nVertegenwoordiger",29,{"$f":"CELL(cstAdresse,'MODELE FICHE'!F19)","v":"'[Fiche de traitement-questionnaires + entretiens.xlsm]MODELE FICHE'!$F$19"},null,false,"AC"]
["Pays \nReprésentant","Country\nDeputy","Land\nVertegenwoordiger",30,{"$f":"CELL(cstAdresse,'MODELE FICHE'!G19)","v":"'[Fiche de traitement-questionnaires + entretiens.xlsm]MODELE FICHE'!$G$19"},null,false,"AD"]
["Tel \nReprésentant","Phone #\nDeputy","Telefoon #\nVertegenwoordiger",31,{"$f":"CELL(cstAdresse,'MODELE FICHE'!H19)","v":"'[Fiche de traitement-questionnaires + entretiens.xlsm]MODELE FICHE'!$H$19"},null,false,"AE"]
["Nom \nCo-Responsable","Name\nJoint controller","Naam\nGezamenlijke VVW",32,{"$f":"CELL(cstAdresse,'MODELE FICHE'!C20)","v":"'[Fiche de traitement-questionnaires + entretiens.xlsm]MODELE FICHE'!$C$20"},null,false,"AF"]
["Adresse \nCo-Responsable","Address\nJoint controller","Adres\nGezamenlijke VVW",33,{"$f":"CELL(cstAdresse,'MODELE FICHE'!D20)","v":"'[Fiche de traitement-questionnaires + entretiens.xlsm]MODELE FICHE'!$D$20"},null,false,"AG"]
["CP \nCo-Responsable","Zip cod\nJoint controller","Postcode\nGezamenlijke VVW",34,{"$f":"CELL(cstAdresse,'MODELE FICHE'!E20)","v":"'[Fiche de traitement-questionnaires + entretiens.xlsm]MODELE FICHE'!$E$20"},null,false,"AH"]
["Ville \nCo-Responsable","City\nJoint controller","Stad\nGezamenlijke VVW",35,{"$f":"CELL(cstAdresse,'MODELE FICHE'!F20)","v":"'[Fiche de traitement-questionnaires + entretiens.xlsm]MODELE FICHE'!$F$20"},null,false,"AI"]
["Pays \nCo-Responsable","Country\nJoint controller","Land\nGezamenlijke VVW",36,{"$f":"CELL(cstAdresse,'MODELE FICHE'!G20)","v":"'[Fiche de traitement-questionnaires + entretiens.xlsm]MODELE FICHE'!$G$20"},null,false,"AJ"]
["Tel \nCo-Responsable","Phone #\nJoint controller","Telefoon #\nGezamenlijke VVW",37,{"$f":"CELL(cstAdresse,'MODELE FICHE'!H20)","v":"'[Fiche de traitement-questionnaires + entretiens.xlsm]MODELE FICHE'!$H$20"},null,false,"AK"]
["Nom \nResponsable interne","Name\nBusiness Process Owner","Naam\nBedrijfsproces eigenaar",38,{"$f":"CELL(cstAdresse,'MODELE FICHE'!C21)","v":"'[Fiche de traitement-questionnaires + entretiens.xlsm]MODELE FICHE'!$C$21"},null,false,"AL"]
["Adresse \nResponsable interne","Address\nBusiness Process Owner","Adres\nBedrijfsproces eigenaar",39,{"$f":"CELL(cstAdresse,'MODELE FICHE'!D21)","v":"'[Fiche de traitement-questionnaires + entretiens.xlsm]MODELE FICHE'!$D$21"},null,false,"AM"]
["CP \nResponsable interne","Zip cod\nBusiness Process Owner","Postcode\nBedrijfsproces eigenaar",40,{"$f":"CELL(cstAdresse,'MODELE FICHE'!E21)","v":"'[Fiche de traitement-questionnaires + entretiens.xlsm]MODELE FICHE'!$E$21"},null,false,"AN"]
["Ville \nResponsable interne","City\nBusiness Process Owner","Stad\nBedrijfsproces eigenaar",41,{"$f":"CELL(cstAdresse,'MODELE FICHE'!F21)","v":"'[Fiche de traitement-questionnaires + entretiens.xlsm]MODELE FICHE'!$F$21"},null,false,"AO"]
["Pays \nResponsable interne","Country\nBusiness Process Owner","Land\nBedrijfsproces eigenaar",42,{"$f":"CELL(cstAdresse,'MODELE FICHE'!G21)","v":"'[Fiche de traitement-questionnaires + entretiens.xlsm]MODELE FICHE'!$G$21"},null,false,"AP"]
["Tel \nResponsable interne","Phone #\nBusiness Process Owner","Telefoon #\nBedrijfsproces eigenaar",43,{"$f":"CELL(cstAdresse,'MODELE FICHE'!H21)","v":"'[Fiche de traitement-questionnaires + entretiens.xlsm]MODELE FICHE'!$H$21"},null,false,"AQ"]
["Nom \nReférent opérationnel","Name\nOperational representative","Naam\nOperationeel vertegenwoordiger",44,{"$f":"CELL(cstAdresse,'MODELE FICHE'!C22)","v":"'[Fiche de traitement-questionnaires + entretiens.xlsm]MODELE FICHE'!$C$22"},null,false,"AR"]
["Adresse \nReférent opérationnel","Address\nOperational representative","Adres\nOperationeel vertegenwoordiger",45,{"$f":"CELL(cstAdresse,'MODELE FICHE'!D22)","v":"'[Fiche de traitement-questionnaires + entretiens.xlsm]MODELE FICHE'!$D$22"},null,false,"AS"]
["CP \nReférent opérationnel","Zip cod\nOperational representative","Postcode\nOperationeel vertegenwoordiger",46,{"$f":"CELL(cstAdresse,'MODELE FICHE'!E22)","v":"'[Fiche de traitement-questionnaires + entretiens.xlsm]MODELE FICHE'!$E$22"},null,false,"AT"]
["Ville \nReférent opérationnel","City\nOperational representative","Stad\nOperationeel vertegenwoordiger",47,{"$f":"CELL(cstAdresse,'MODELE FICHE'!F22)","v":"'[Fiche de traitement-questionnaires + entretiens.xlsm]MODELE FICHE'!$F$22"},null,false,"AU"]
["Pays \nReférent opérationnel","Country\nOperational representative","Land\nOperationeel vertegenwoordiger",48,{"$f":"CELL(cstAdresse,'MODELE FICHE'!G22)","v":"'[Fiche de traitement-questionnaires + entretiens.xlsm]MODELE FICHE'!$G$22"},null,false,"AV"]
["Tel \nReférent opérationnel","Phone #\nOperational representative","Telefoon #\nOperationeel vertegenwoordiger",49,{"$f":"CELL(cstAdresse,'MODELE FICHE'!H22)","v":"'[Fiche de traitement-questionnaires + entretiens.xlsm]MODELE FICHE'!$H$22"},null,false,"AW"]
["Finalité principale","Main purpose","Hoofdoel",50,{"$f":"CELL(cstAdresse,'MODELE FICHE'!C25)","v":"'[Fiche de traitement-questionnaires + entretiens.xlsm]MODELE FICHE'!$C$25"},null,false,"AX"]
["Fondement","Lawfulness","Rechtmatigheid",51,{"$f":"CELL(cstAdresse,'MODELE FICHE'!G25)","v":"'[Fiche de traitement-questionnaires + entretiens.xlsm]MODELE FICHE'!$G$25"},null,false,"AY"]
["Sous-finalité 1","Sub-purpose #1","Subdoel #1",52,{"$f":"CELL(cstAdresse,'MODELE FICHE'!C26)","v":"'[Fiche de traitement-questionnaires + entretiens.xlsm]MODELE FICHE'!$C$26"},null,false,"AZ"]
["Fondement 1","Lawfulness #1","Rechtmatigheid #1",53,{"$f":"CELL(cstAdresse,'MODELE FICHE'!G26)","v":"'[Fiche de traitement-questionnaires + entretiens.xlsm]MODELE FICHE'!$G$26"},null,false,"BA"]
["Sous-finalité 2","Sub-purpose #2","Subdoel #2",54,{"$f":"CELL(cstAdresse,'MODELE FICHE'!C27)","v":"'[Fiche de traitement-questionnaires + entretiens.xlsm]MODELE FICHE'!$C$27"},null,false,"BB"]
["Fondement 2","Lawfulness #2","Rechtmatigheid #2",55,{"$f":"CELL(cstAdresse,'MODELE FICHE'!G27)","v":"'[Fiche de traitement-questionnaires + entretiens.xlsm]MODELE FICHE'!$G$27"},null,false,"BC"]
["Sous-finalité 3","Sub-purpose #3","Subdoel #3",56,{"$f":"CELL(cstAdresse,'MODELE FICHE'!C28)","v":"'[Fiche de traitement-questionnaires + entretiens.xlsm]MODELE FICHE'!$C$28"},null,false,"BD"]
["Fondement 3","Lawfulness #3","Rechtmatigheid #3",57,{"$f":"CELL(cstAdresse,'MODELE FICHE'!G28)","v":"'[Fiche de traitement-questionnaires + entretiens.xlsm]MODELE FICHE'!$G$28"},null,false,"BE"]
["Sous-finalité 4","Sub-purpose #4","Subdoel #4",58,{"$f":"CELL(cstAdresse,'MODELE FICHE'!C29)","v":"'[Fiche de traitement-questionnaires + entretiens.xlsm]MODELE FICHE'!$C$29"},null,false,"BF"]
["Fondement 4","Lawfulness #4","Rechtmatigheid #4",59,{"$f":"CELL(cstAdresse,'MODELE FICHE'!G29)","v":"'[Fiche de traitement-questionnaires + entretiens.xlsm]MODELE FICHE'!$G$29"},null,false,"BG"]
["Sous-finalité 5","Sub-purpose #5","Subdoel #5",60,{"$f":"CELL(cstAdresse,'MODELE FICHE'!C30)","v":"'[Fiche de traitement-questionnaires + entretiens.xlsm]MODELE FICHE'!$C$30"},null,false,"BH"]
["Fondement 5","Lawfulness #5","Rechtmatigheid #5",61,{"$f":"CELL(cstAdresse,'MODELE FICHE'!G30)","v":"'[Fiche de traitement-questionnaires + entretiens.xlsm]MODELE FICHE'!$G$30"},null,false,"BI"]
["Catégorie de personnes 1","Data object category #1","Categorie van de betrokkenen #1",62,{"$f":"CELL(cstAdresse,'MODELE FICHE'!C33)","v":"'[Fiche de traitement-questionnaires + entretiens.xlsm]MODELE FICHE'!$C$33"},null,false,"BJ"]
["Catégorie de personnes 2","Data object category #2","Categorie van de betrokkenen #2",63,{"$f":"CELL(cstAdresse,'MODELE FICHE'!C34)","v":"'[Fiche de traitement-questionnaires + entretiens.xlsm]MODELE FICHE'!$C$34"},null,false,"BK"]
["Catégorie de personnes 3","Data object category #3","Categorie van de betrokkenen #3",64,{"$f":"CELL(cstAdresse,'MODELE FICHE'!C35)","v":"'[Fiche de traitement-questionnaires + entretiens.xlsm]MODELE FICHE'!$C$35"},null,false,"BL"]
["Catégorie de personnes 4","Data object category #4","Categorie van de betrokkenen #4",65,{"$f":"CELL(cstAdresse,'MODELE FICHE'!C36)","v":"'[Fiche de traitement-questionnaires + entretiens.xlsm]MODELE FICHE'!$C$36"},null,false,"BM"]
["Description\nDestinataire 1","Description\nRecipient # 1","Omschrijving van ontvanger #1",66,{"$f":"CELL(cstAdresse,'MODELE FICHE'!C39)","v":"'[Fiche de traitement-questionnaires + entretiens.xlsm]MODELE FICHE'!$C$39"},null,false,"BN"]
["Type de destinataire 1","Nature of Recipient # 1","Categorie van ontvanger #1",67,{"$f":"CELL(cstAdresse,'MODELE FICHE'!E39)","v":"'[Fiche de traitement-questionnaires + entretiens.xlsm]MODELE FICHE'!$E$39"},null,false,"BO"]
["Description\nDestinataire 2","Description\nRecipient # 2","Omschrijving van ontvanger #2",68,{"$f":"CELL(cstAdresse,'MODELE FICHE'!C40)","v":"'[Fiche de traitement-questionnaires + entretiens.xlsm]MODELE FICHE'!$C$40"},null,false,"BP"]
["Type de destinataire 2","Nature of Recipient # 2","Categorie van ontvanger #2",69,{"$f":"CELL(cstAdresse,'MODELE FICHE'!E40)","v":"'[Fiche de traitement-questionnaires + entretiens.xlsm]MODELE FICHE'!$E$40"},null,false,"BQ"]
["Description\nDestinataire 3","Description\nRecipient # 3","Omschrijving van ontvanger #3",70,{"$f":"CELL(cstAdresse,'MODELE FICHE'!C41)","v":"'[Fiche de traitement-questionnaires + entretiens.xlsm]MODELE FICHE'!$C$41"},null,false,"BR"]
["Type de destinataire 3","Nature of Recipient # 3","Categorie van ontvanger #3",71,{"$f":"CELL(cstAdresse,'MODELE FICHE'!E41)","v":"'[Fiche de traitement-questionnaires + entretiens.xlsm]MODELE FICHE'!$E$41"},null,false,"BS"]
["Description\nDestinataire 4","Description\nRecipient # 4","Omschrijving van ontvanger #4",72,{"$f":"CELL(cstAdresse,'MODELE FICHE'!C42)","v":"'[Fiche de traitement-questionnaires + entretiens.xlsm]MODELE FICHE'!$C$42"},null,{"$f":"ISERR(E73)","v":false},{"$f":"IF($D73<=26,\"\",CHAR(64+INT(($D73-1)/26)))&CHAR(65+MOD($D73-1,26))","v":"BT"}]
["Type de destinataire 4","Nature of Recipient # 4","Categorie van ontvanger #4",73,{"$f":"CELL(cstAdresse,'MODELE FICHE'!E42)","v":"'[Fiche de traitement-questionnaires + entretiens.xlsm]MODELE FICHE'!$E$42"},null,false,"BU"]
["Description\nDestinataire 5","Description\nRecipient # 5","Omschrijving van ontvanger #5",74,{"$f":"CELL(cstAdresse,'MODELE FICHE'!C43)","v":"'[Fiche de traitement-questionnaires + entretiens.xlsm]MODELE FICHE'!$C$43"},null,false,"BV"]
["Type de destinataire 5","Nature of Recipient # 5","Categorie van ontvanger #5",75,{"$f":"CELL(cstAdresse,'MODELE FICHE'!E43)","v":"'[Fiche de traitement-questionnaires + entretiens.xlsm]MODELE FICHE'!$E$43"},null,false,"BW"]
["Description\nDestinataire 6","Description\nRecipient # 6","Omschrijving van ontvanger #6",76,{"$f":"CELL(cstAdresse,'MODELE FICHE'!C44)","v":"'[Fiche de traitement-questionnaires + entretiens.xlsm]MODELE FICHE'!$C$44"},null,false,"BX"]
["Type de destinataire 6","Nature of Recipient # 6","Categorie van ontvanger #6",77,{"$f":"CELL(cstAdresse,'MODELE FICHE'!E44)","v":"'[Fiche de traitement-questionnaires + entretiens.xlsm]MODELE FICHE'!$E$44"},null,false,"BY"]
["Description\nDestinataire 7","Description\nRecipient # 7","Omschrijving van ontvanger #7",78,{"$f":"CELL(cstAdresse,'MODELE FICHE'!C45)","v":"'[Fiche de traitement-questionnaires + entretiens.xlsm]MODELE FICHE'!$C$45"},null,false,"BZ"]
["Type de destinataire 7","Nature of Recipient # 7","Categorie van ontvanger #7",79,{"$f":"CELL(cstAdresse,'MODELE FICHE'!E45)","v":"'[Fiche de traitement-questionnaires + entretiens.xlsm]MODELE FICHE'!$E$45"},null,false,"CA"]
["Description\nDestinataire 8","Description\nRecipient # 8","Omschrijving van ontvanger #8",80,{"$f":"CELL(cstAdresse,'MODELE FICHE'!C46)","v":"'[Fiche de traitement-questionnaires + entretiens.xlsm]MODELE FICHE'!$C$46"},null,false,"CB"]
["Type de destinataire 8","Nature of Recipient # 8","Categorie van ontvanger #8",81,{"$f":"CELL(cstAdresse,'MODELE FICHE'!E46)","v":"'[Fiche de traitement-questionnaires + entretiens.xlsm]MODELE FICHE'!$E$46"},null,false,"CC"]
["Description\nDestinataire 9","Description\nRecipient # 9","Omschrijving van ontvanger #9",82,{"$f":"CELL(cstAdresse,'MODELE FICHE'!C47)","v":"'[Fiche de traitement-questionnaires + entretiens.xlsm]MODELE FICHE'!$C$47"},null,false,"CD"]
["Type de destinataire 9","Nature of Recipient # 9","Categorie van ontvanger #9",83,{"$f":"CELL(cstAdresse,'MODELE FICHE'!E47)","v":"'[Fiche de traitement-questionnaires + entretiens.xlsm]MODELE FICHE'!$E$47"},null,false,"CE"]
["Description\nDestinataire 10","Description\nRecipient # 10","Omschrijving van ontvanger #10",84,{"$f":"CELL(cstAdresse,'MODELE FICHE'!C48)","v":"'[Fiche de traitement-questionnaires + entretiens.xlsm]MODELE FICHE'!$C$48"},null,false,"CF"]
["Type de destinataire 10","Nature of Recipient # 10","Categorie van ontvanger #10",85,{"$f":"CELL(cstAdresse,'MODELE FICHE'!E48)","v":"'[Fiche de traitement-questionnaires + entretiens.xlsm]MODELE FICHE'!$E$48"},null,false,"CG"]
["Description \nCat. DCP1","Description \nPD Nature #1","Omschrijving van PG categorie #1",86,{"$f":"CELL(cstAdresse,'MODELE FICHE'!C51)","v":"'[Fiche de traitement-questionnaires + entretiens.xlsm]MODELE FICHE'!$C$51"},null,false,"CH"]
["Délai d'effacement\nCat. DCP1","Time limit for erasure\nPD Nature #1","Bewaartermijn voor PG categorie #1",87,{"$f":"CELL(cstAdresse,'MODELE FICHE'!E51)","v":"'[Fiche de traitement-questionnaires + entretiens.xlsm]MODELE FICHE'!$E$51"},null,false,"CI"]
["Fondement justifiant le délai\nCat. DCP1","Particular founding principles\nPD Nature #1","Bepaalde grondbeginselen voor PG categorie #1",88,{"$f":"CELL(cstAdresse,'MODELE FICHE'!F51)","v":"'[Fiche de traitement-questionnaires + entretiens.xlsm]MODELE FICHE'!$F$51"},null,false,"CJ"]
["Destinataires\nCat. DCP1","Recipients\nPD Nature #1","Ontvanger van PG categorie #1",89,{"$f":"CELL(cstAdresse,'MODELE FICHE'!G51)","v":"'[Fiche de traitement-questionnaires + entretiens.xlsm]MODELE FICHE'!$G$51"},"split",false,"CK"]
["Description \nCat. DCP2","Description \nPD Nature #2","Omschrijving van PG categorie #2",90,{"$f":"CELL(cstAdresse,'MODELE FICHE'!C52)","v":"'[Fiche de traitement-questionnaires + entretiens.xlsm]MODELE FICHE'!$C$52"},null,false,"CL"]
["Délai d'effacement\nCat. DCP2","Time limit for erasure\nPD Nature #2","Bewaartermijn voor PG categorie #2",91,{"$f":"CELL(cstAdresse,'MODELE FICHE'!E52)","v":"'[Fiche de traitement-questionnaires + entretiens.xlsm]MODELE FICHE'!$E$52"},null,false,"CM"]
["Fondement justifiant le délai\nCat. DCP2","Particular founding principles\nPD Nature #2","Bepaalde grondbeginselen voor PG categorie #2",92,{"$f":"CELL(cstAdresse,'MODELE FICHE'!F52)","v":"'[Fiche de traitement-questionnaires + entretiens.xlsm]MODELE FICHE'!$F$52"},null,false,"CN"]
["Destinataires\nCat. DCP2","Recipients\nPD Nature #2","Ontvanger van PG categorie #2",93,{"$f":"CELL(cstAdresse,'MODELE FICHE'!G52)","v":"'[Fiche de traitement-questionnaires + entretiens.xlsm]MODELE FICHE'!$G$52"},"split",false,"CO"]
["Description \nCat. DCP3","Description \nPD Nature #3","Omschrijving van PG categorie #3",94,{"$f":"CELL(cstAdresse,'MODELE FICHE'!C53)","v":"'[Fiche de traitement-questionnaires + entretiens.xlsm]MODELE FICHE'!$C$53"},null,{"$f":"ISERR(E95)","v":false},"CP"]
["Délai d'effacement\nCat. DCP3","Time limit for erasure\nPD Nature #3","Bewaartermijn voor PG categorie #3",95,{"$f":"CELL(cstAdresse,'MODELE FICHE'!E53)","v":"'[Fiche de traitement-questionnaires + entretiens.xlsm]MODELE FICHE'!$E$53"},null,false,"CQ"]
["Fondement justifiant le délai\nCat. DCP3","Particular founding principles\nPD Nature #3","Bepaalde grondbeginselen voor PG categorie #3",96,{"$f":"CELL(cstAdresse,'MODELE FICHE'!F53)","v":"'[Fiche de traitement-questionnaires + entretiens.xlsm]MODELE FICHE'!$F$53"},null,false,"CR"]
["Destinataires\nCat. DCP3","Recipients\nPD Nature #3","Ontvanger van PG categorie #3",97,{"$f":"CELL(cstAdresse,'MODELE FICHE'!G53)","v":"'[Fiche de traitement-questionnaires + entretiens.xlsm]MODELE FICHE'!$G$53"},"split",false,"CS"]
["Description \nCat. DCP4","Description \nPD Nature #4","Omschrijving van PG categorie #4",98,{"$f":"CELL(cstAdresse,'MODELE FICHE'!C54)","v":"'[Fiche de traitement-questionnaires + entretiens.xlsm]MODELE FICHE'!$C$54"},null,false,"CT"]
["Délai d'effacement\nCat. DCP4","Time limit for erasure\nPD Nature #4","Bewaartermijn voor PG categorie #4",99,{"$f":"CELL(cstAdresse,'MODELE FICHE'!E54)","v":"'[Fiche de traitement-questionnaires + entretiens.xlsm]MODELE FICHE'!$E$54"},null,false,"CU"]
["Fondement justifiant le délai\nCat. DCP4","Particular founding principles\nPD Nature #4","Bepaalde grondbeginselen voor PG categorie #4",100,{"$f":"CELL(cstAdresse,'MODELE FICHE'!F54)","v":"'[Fiche de traitement-questionnaires + entretiens.xlsm]MODELE FICHE'!$F$54"},null,false,"CV"]
["Destinataires\nCat. DCP5","Recipients\nPD Nature #4","Ontvanger van PG categorie #5",101,{"$f":"CELL(cstAdresse,'MODELE FICHE'!G54)","v":"'[Fiche de traitement-questionnaires + entretiens.xlsm]MODELE FICHE'!$G$54"},"split",false,"CW"]
["Description \nCat. DCP5","Description \nPD Nature #5","Omschrijving van PG categorie #5",102,{"$f":"CELL(cstAdresse,'MODELE FICHE'!C55)","v":"'[Fiche de traitement-questionnaires + entretiens.xlsm]MODELE FICHE'!$C$55"},null,false,"CX"]
["Délai d'effacement\nCat. DCP5","Time limit for erasure\nPD Nature #5","Bewaartermijn voor PG categorie #5",103,{"$f":"CELL(cstAdresse,'MODELE FICHE'!E55)","v":"'[Fiche de traitement-questionnaires + entretiens.xlsm]MODELE FICHE'!$E$55"},null,false,"CY"]
["Fondement justifiant le délai\nCat. DCP5","Particular founding principles\nPD Nature #5","Bepaalde grondbeginselen voor PG categorie #5",104,{"$f":"CELL(cstAdresse,'MODELE FICHE'!F55)","v":"'[Fiche de traitement-questionnaires + entretiens.xlsm]MODELE FICHE'!$F$55"},null,false,"CZ"]
["Destinataires\nCat. DCP5","Recipients\nPD Nature #5","Ontvanger van PG categorie #5",105,{"$f":"CELL(cstAdresse,'MODELE FICHE'!G55)","v":"'[Fiche de traitement-questionnaires + entretiens.xlsm]MODELE FICHE'!$G$55"},"split",false,"DA"]
["Description \nCat. DCP6","Description \nPD Nature #6","Omschrijving van PG categorie #6",106,{"$f":"CELL(cstAdresse,'MODELE FICHE'!C56)","v":"'[Fiche de traitement-questionnaires + entretiens.xlsm]MODELE FICHE'!$C$56"},null,false,"DB"]
["Délai d'effacement\nCat. DCP6","Time limit for erasure\nPD Nature #6","Bewaartermijn voor PG categorie #6",107,{"$f":"CELL(cstAdresse,'MODELE FICHE'!E56)","v":"'[Fiche de traitement-questionnaires + entretiens.xlsm]MODELE FICHE'!$E$56"},null,false,"DC"]
["Fondement justifiant le délai\nCat. DCP6","Particular founding principles\nPD Nature #6","Bepaalde grondbeginselen voor PG categorie #6",108,{"$f":"CELL(cstAdresse,'MODELE FICHE'!F56)","v":"'[Fiche de traitement-questionnaires + entretiens.xlsm]MODELE FICHE'!$F$56"},null,false,"DD"]
["Destinataires\nCat. DCP6","Recipients\nPD Nature #6","Ontvanger van PG categorie #6",109,{"$f":"CELL(cstAdresse,'MODELE FICHE'!G56)","v":"'[Fiche de traitement-questionnaires + entretiens.xlsm]MODELE FICHE'!$G$56"},"split",false,"DE"]
["Description \nCat. DCP7","Description \nPD Nature #7","Omschrijving van PG categorie #7",110,{"$f":"CELL(cstAdresse,'MODELE FICHE'!C57)","v":"'[Fiche de traitement-questionnaires + entretiens.xlsm]MODELE FICHE'!$C$57"},null,{"$f":"ISERR(E111)","v":false},"DF"]
["Délai d'effacement\nCat. DCP7","Time limit for erasure\nPD Nature #7","Bewaartermijn voor PG categorie #7",111,{"$f":"CELL(cstAdresse,'MODELE FICHE'!E57)","v":"'[Fiche de traitement-questionnaires + entretiens.xlsm]MODELE FICHE'!$E$57"},null,false,"DG"]
["Fondement justifiant le délai\nCat. DCP7","Particular founding principles\nPD Nature #7","Bepaalde grondbeginselen voor PG categorie #7",112,{"$f":"CELL(cstAdresse,'MODELE FICHE'!F57)","v":"'[Fiche de traitement-questionnaires + entretiens.xlsm]MODELE FICHE'!$F$57"},null,false,"DH"]
["Destinataires\nCat. DCP7","Recipients\nPD Nature #7","Ontvanger van PG categorie #7",113,{"$f":"CELL(cstAdresse,'MODELE FICHE'!G57)","v":"'[Fiche de traitement-questionnaires + entretiens.xlsm]MODELE FICHE'!$G$57"},"split",false,"DI"]
["Description \nCat. DCP200","Description \nPD Nature #200","Omschrijving van PG categorie #200",114,{"$f":"CELL(cstAdresse,'MODELE FICHE'!C58)","v":"'[Fiche de traitement-questionnaires + entretiens.xlsm]MODELE FICHE'!$C$58"},null,{"$f":"ISERR(E115)","v":false},{"$f":"IF($D115<=26,\"\",CHAR(64+INT(($D115-1)/26)))&CHAR(65+MOD($D115-1,26))","v":"DJ"}]
["Délai d'effacement\nCat. DCP200","Time limit for erasure\nPD Nature #200","Bewaartermijn voor PG categorie #200",115,{"$f":"CELL(cstAdresse,'MODELE FICHE'!E58)","v":"'[Fiche de traitement-questionnaires + entretiens.xlsm]MODELE FICHE'!$E$58"},null,false,{"$f":"IF($D116<=26,\"\",CHAR(64+INT(($D116-1)/26)))&CHAR(65+MOD($D116-1,26))","v":"DK"}]
["Fondement justifiant le délai\nCat. DCP200","Particular founding principles\nPD Nature #200","Bepaalde grondbeginselen voor PG categorie #200",116,{"$f":"CELL(cstAdresse,'MODELE FICHE'!F58)","v":"'[Fiche de traitement-questionnaires + entretiens.xlsm]MODELE FICHE'!$F$58"},null,false,{"$f":"IF($D117<=26,\"\",CHAR(64+INT(($D117-1)/26)))&CHAR(65+MOD($D117-1,26))","v":"DL"}]
["Destinataires\nCat. DCP200","Recipients\nPD Nature #200","Ontvanger van PG categorie #200",117,{"$f":"CELL(cstAdresse,'MODELE FICHE'!G58)","v":"'[Fiche de traitement-questionnaires + entretiens.xlsm]MODELE FICHE'!$G$58"},"split",false,{"$f":"IF($D118<=26,\"\",CHAR(64+INT(($D118-1)/26)))&CHAR(65+MOD($D118-1,26))","v":"DM"}]
["Description \nCat. DCP8","Description \nPD Nature #8","Omschrijving van PG categorie #8",118,{"$f":"CELL(cstAdresse,'MODELE FICHE'!C61)","v":"'[Fiche de traitement-questionnaires + entretiens.xlsm]MODELE FICHE'!$C$61"},null,false,"DN"]
["Délai d'effacement\nCat. DCP8","Time limit for erasure\nPD Nature #8","Bewaartermijn voor PG categorie #8",119,{"$f":"CELL(cstAdresse,'MODELE FICHE'!E61)","v":"'[Fiche de traitement-questionnaires + entretiens.xlsm]MODELE FICHE'!$E$61"},null,false,"DO"]
["Fondement justifiant le délai\nCat. DCP8","Particular founding principles\nPD Nature #8","Bepaalde grondbeginselen voor PG categorie #8",120,{"$f":"CELL(cstAdresse,'MODELE FICHE'!F61)","v":"'[Fiche de traitement-questionnaires + entretiens.xlsm]MODELE FICHE'!$F$61"},null,false,"DP"]
["Destinataires\nCat. DCP8","Recipients\nPD Nature #8","Ontvanger van PG categorie #8",121,{"$f":"CELL(cstAdresse,'MODELE FICHE'!G61)","v":"'[Fiche de traitement-questionnaires + entretiens.xlsm]MODELE FICHE'!$G$61"},"split",false,"DQ"]
["Description \nCat. DCP9","Description \nPD Nature #9","Omschrijving van PG categorie #9",122,{"$f":"CELL(cstAdresse,'MODELE FICHE'!C62)","v":"'[Fiche de traitement-questionnaires + entretiens.xlsm]MODELE FICHE'!$C$62"},null,false,"DR"]
["Délai d'effacement\nCat. DCP9","Time limit for erasure\nPD Nature #9","Bewaartermijn voor PG categorie #9",123,{"$f":"CELL(cstAdresse,'MODELE FICHE'!E62)","v":"'[Fiche de traitement-questionnaires + entretiens.xlsm]MODELE FICHE'!$E$62"},null,false,"DS"]
["Fondement justifiant le délai\nCat. DCP9","Particular founding principles\nPD Nature #9","Bepaalde grondbeginselen voor PG categorie #1",124,{"$f":"CELL(cstAdresse,'MODELE FICHE'!F62)","v":"'[Fiche de traitement-questionnaires + entretiens.xlsm]MODELE FICHE'!$F$62"},null,false,"DT"]
["Destinataires\nCat. DCP9","Recipients\nPD Nature #9","Ontvanger van PG categorie #9",125,{"$f":"CELL(cstAdresse,'MODELE FICHE'!G62)","v":"'[Fiche de traitement-questionnaires + entretiens.xlsm]MODELE FICHE'!$G$62"},"split",false,"DU"]
["Description \nCat. DCP10","Description \nPD Nature #10","Omschrijving van PG categorie #10",126,{"$f":"CELL(cstAdresse,'MODELE FICHE'!C63)","v":"'[Fiche de traitement-questionnaires + entretiens.xlsm]MODELE FICHE'!$C$63"},null,false,"DV"]
["Délai d'effacement\nCat. DCP10","Time limit for erasure\nPD Nature #10","Bewaartermijn voor PG categorie #10",127,{"$f":"CELL(cstAdresse,'MODELE FICHE'!E63)","v":"'[Fiche de traitement-questionnaires + entretiens.xlsm]MODELE FICHE'!$E$63"},null,false,"DW"]
["Fondement justifiant le délai\nCat. DCP10","Particular founding principles\nPD Nature #10","Bepaalde grondbeginselen voor PG categorie #10",128,{"$f":"CELL(cstAdresse,'MODELE FICHE'!F63)","v":"'[Fiche de traitement-questionnaires + entretiens.xlsm]MODELE FICHE'!$F$63"},null,false,"DX"]
["Destinataires\nCat. DCP10","Recipients\nPD Nature #10","Ontvanger van PG categorie #10",129,{"$f":"CELL(cstAdresse,'MODELE FICHE'!G63)","v":"'[Fiche de traitement-questionnaires + entretiens.xlsm]MODELE FICHE'!$G$63"},"split",false,"DY"]
["Description \nCat. DCP11","Description \nPD Nature #11","Omschrijving van PG categorie #11",130,{"$f":"CELL(cstAdresse,'MODELE FICHE'!C64)","v":"'[Fiche de traitement-questionnaires + entretiens.xlsm]MODELE FICHE'!$C$64"},null,false,"DZ"]
["Délai d'effacement\nCat. DCP11","Time limit for erasure\nPD Nature #11","Bewaartermijn voor PG categorie #11",131,{"$f":"CELL(cstAdresse,'MODELE FICHE'!E64)","v":"'[Fiche de traitement-questionnaires + entretiens.xlsm]MODELE FICHE'!$E$64"},null,false,"EA"]
["Fondement justifiant le délai\nCat. DCP11","Particular founding principles\nPD Nature #11","Bepaalde grondbeginselen voor PG categorie #11",132,{"$f":"CELL(cstAdresse,'MODELE FICHE'!F64)","v":"'[Fiche de traitement-questionnaires + entretiens.xlsm]MODELE FICHE'!$F$64"},null,false,"EB"]
["Destinataires\nCat. DCP11","Recipients\nPD Nature #11","Ontvanger van PG categorie #11",133,{"$f":"CELL(cstAdresse,'MODELE FICHE'!G64)","v":"'[Fiche de traitement-questionnaires + entretiens.xlsm]MODELE FICHE'!$G$64"},"split",false,"EC"]
["Description \nCat. DCP12","Description \nPD Nature #12","Omschrijving van PG categorie #12",134,{"$f":"CELL(cstAdresse,'MODELE FICHE'!C65)","v":"'[Fiche de traitement-questionnaires + entretiens.xlsm]MODELE FICHE'!$C$65"},null,false,"ED"]
["Délai d'effacement\nCat. DCP12","Time limit for erasure\nPD Nature #12","Bewaartermijn voor PG categorie #12",135,{"$f":"CELL(cstAdresse,'MODELE FICHE'!E65)","v":"'[Fiche de traitement-questionnaires + entretiens.xlsm]MODELE FICHE'!$E$65"},null,false,"EE"]
["Fondement justifiant le délai\nCat. DCP12","Particular founding principles\nPD Nature #12","Bepaalde grondbeginselen voor PG categorie #12",136,{"$f":"CELL(cstAdresse,'MODELE FICHE'!F65)","v":"'[Fiche de traitement-questionnaires + entretiens.xlsm]MODELE FICHE'!$F$65"},null,false,"EF"]
["Destinataires\nCat. DCP12","Recipients\nPD Nature #12","Ontvanger van PG categorie #12",137,{"$f":"CELL(cstAdresse,'MODELE FICHE'!G65)","v":"'[Fiche de traitement-questionnaires + entretiens.xlsm]MODELE FICHE'!$G$65"},"split",false,"EG"]
["Description \nCat. DCP13","Description \nPD Nature #13","Omschrijving van PG categorie #13",138,{"$f":"CELL(cstAdresse,'MODELE FICHE'!C66)","v":"'[Fiche de traitement-questionnaires + entretiens.xlsm]MODELE FICHE'!$C$66"},null,false,"EH"]
["Délai d'effacement\nCat. DCP13","Time limit for erasure\nPD Nature #13","Bewaartermijn voor PG categorie #13",139,{"$f":"CELL(cstAdresse,'MODELE FICHE'!E66)","v":"'[Fiche de traitement-questionnaires + entretiens.xlsm]MODELE FICHE'!$E$66"},null,false,"EI"]
["Fondement justifiant le délai\nCat. DCP13","Particular founding principles\nPD Nature #13","Bepaalde grondbeginselen voor PG categorie #13",140,{"$f":"CELL(cstAdresse,'MODELE FICHE'!F66)","v":"'[Fiche de traitement-questionnaires + entretiens.xlsm]MODELE FICHE'!$F$66"},null,false,{"$f":"IF($D141<=26,\"\",CHAR(64+INT(($D141-1)/26)))&CHAR(65+MOD($D141-1,26))","v":"EJ"}]
["Destinataires\nCat. DCP13","Recipients\nPD Nature #13","Ontvanger van PG categorie #13",141,{"$f":"CELL(cstAdresse,'MODELE FICHE'!G66)","v":"'[Fiche de traitement-questionnaires + entretiens.xlsm]MODELE FICHE'!$G$66"},"split",false,"EK"]
["Description \nCat. DCP14","Description \nPD Nature #14","Omschrijving van PG categorie #14",142,{"$f":"CELL(cstAdresse,'MODELE FICHE'!C67)","v":"'[Fiche de traitement-questionnaires + entretiens.xlsm]MODELE FICHE'!$C$67"},null,false,"EL"]
["Délai d'effacement\nCat. DCP14","Time limit for erasure\nPD Nature #14","Bewaartermijn voor PG categorie #14",143,{"$f":"CELL(cstAdresse,'MODELE FICHE'!E67)","v":"'[Fiche de traitement-questionnaires + entretiens.xlsm]MODELE FICHE'!$E$67"},null,false,"EM"]
["Fondement justifiant le délai\nCat. DCP14","Particular founding principles\nPD Nature #14","Bepaalde grondbeginselen voor PG categorie #14",144,{"$f":"CELL(cstAdresse,'MODELE FICHE'!F67)","v":"'[Fiche de traitement-questionnaires + entretiens.xlsm]MODELE FICHE'!$F$67"},null,false,"EN"]
["Destinataires\nCat. DCP14","Recipients\nPD Nature #14","Ontvanger van PG categorie #14",145,{"$f":"CELL(cstAdresse,'MODELE FICHE'!G67)","v":"'[Fiche de traitement-questionnaires + entretiens.xlsm]MODELE FICHE'!$G$67"},"split",false,"EO"]
["Description \nCat. DCP15","Description \nPD Nature #15","Omschrijving van PG categorie #15",146,{"$f":"CELL(cstAdresse,'MODELE FICHE'!C68)","v":"'[Fiche de traitement-questionnaires + entretiens.xlsm]MODELE FICHE'!$C$68"},null,false,"EP"]
["Délai d'effacement\nCat. DCP15","Time limit for erasure\nPD Nature #15","Bewaartermijn voor PG categorie #15",147,{"$f":"CELL(cstAdresse,'MODELE FICHE'!E68)","v":"'[Fiche de traitement-questionnaires + entretiens.xlsm]MODELE FICHE'!$E$68"},null,false,"EQ"]
["Fondement justifiant le délai\nCat. DCP15","Particular founding principles\nPD Nature #15","Bepaalde grondbeginselen voor PG categorie #15",148,{"$f":"CELL(cstAdresse,'MODELE FICHE'!F68)","v":"'[Fiche de traitement-questionnaires + entretiens.xlsm]MODELE FICHE'!$F$68"},null,{"$f":"ISERR(E149)","v":false},"ER"]
["Destinataires\nCat. DCP15","Recipients\nPD Nature #15","Ontvanger van PG categorie #15",149,{"$f":"CELL(cstAdresse,'MODELE FICHE'!G68)","v":"'[Fiche de traitement-questionnaires + entretiens.xlsm]MODELE FICHE'!$G$68"},"split",false,"ES"]
["Description \nCat. DCP16","Description \nPD Nature #16","Omschrijving van PG categorie #16",150,{"$f":"CELL(cstAdresse,'MODELE FICHE'!C69)","v":"'[Fiche de traitement-questionnaires + entretiens.xlsm]MODELE FICHE'!$C$69"},null,false,"ET"]
["Délai d'effacement\nCat. DCP16","Time limit for erasure\nPD Nature #16","Bewaartermijn voor PG categorie #16",151,{"$f":"CELL(cstAdresse,'MODELE FICHE'!E69)","v":"'[Fiche de traitement-questionnaires + entretiens.xlsm]MODELE FICHE'!$E$69"},null,false,"EU"]
["Fondement justifiant le délai\nCat. DCP16","Particular founding principles\nPD Nature #16","Bepaalde grondbeginselen voor PG categorie #16",152,{"$f":"CELL(cstAdresse,'MODELE FICHE'!F69)","v":"'[Fiche de traitement-questionnaires + entretiens.xlsm]MODELE FICHE'!$F$69"},null,false,"EV"]
["Destinataires\nCat. DCP16","Recipients\nPD Nature #16","Ontvanger van PG categorie #16",153,{"$f":"CELL(cstAdresse,'MODELE FICHE'!G69)","v":"'[Fiche de traitement-questionnaires + entretiens.xlsm]MODELE FICHE'!$G$69"},"split",false,"EW"]
["Description \nCat. DCP17","Description \nPD Nature #17","Omschrijving van PG categorie #17",154,{"$f":"CELL(cstAdresse,'MODELE FICHE'!C70)","v":"'[Fiche de traitement-questionnaires + entretiens.xlsm]MODELE FICHE'!$C$70"},null,false,"EX"]
["Délai d'effacement\nCat. DCP17","Time limit for erasure\nPD Nature #17","Bewaartermijn voor PG categorie #17",155,{"$f":"CELL(cstAdresse,'MODELE FICHE'!E70)","v":"'[Fiche de traitement-questionnaires + entretiens.xlsm]MODELE FICHE'!$E$70"},null,false,"EY"]
["Fondement justifiant le délai\nCat. DCP17","Particular founding principles\nPD Nature #17","Bepaalde grondbeginselen voor PG categorie #17",156,{"$f":"CELL(cstAdresse,'MODELE FICHE'!F70)","v":"'[Fiche de traitement-questionnaires + entretiens.xlsm]MODELE FICHE'!$F$70"},null,false,"EZ"]
["Destinataires\nCat. DCP17","Recipients\nPD Nature #17","Ontvanger van PG categorie #17",157,{"$f":"CELL(cstAdresse,'MODELE FICHE'!G70)","v":"'[Fiche de traitement-questionnaires + entretiens.xlsm]MODELE FICHE'!$G$70"},"split",false,"FA"]
["Destinataire\nTransfert 1","Recipient\nTransfer # 1","Gegevensstromen Ontvanger  #1",158,{"$f":"CELL(cstAdresse,'MODELE FICHE'!C73)","v":"'[Fiche de traitement-questionnaires + entretiens.xlsm]MODELE FICHE'!$C$73"},null,false,"FB"]
["Pays\nTransfert 1","Country\nTransfer # 1","Gegevensstromen Land  #1",159,{"$f":"CELL(cstAdresse,'MODELE FICHE'!D73)","v":"'[Fiche de traitement-questionnaires + entretiens.xlsm]MODELE FICHE'!$D$73"},null,false,"FC"]
["Type de Garanties\nTransfert 1","PD protection type\nTransfer # 1","Gegevensstromen Garantie Type  #1",160,{"$f":"CELL(cstAdresse,'MODELE FICHE'!E73)","v":"'[Fiche de traitement-questionnaires + entretiens.xlsm]MODELE FICHE'!$E$73"},null,false,"FD"]
["Lien vers le doc\nTransfert 1","Link to document\nTransfer # 1","Gegevensstromen link naar het document# 1",161,{"$f":"CELL(cstAdresse,'MODELE FICHE'!G73)","v":"'[Fiche de traitement-questionnaires + entretiens.xlsm]MODELE FICHE'!$G$73"},null,false,"FE"]
["Destinataire\nTransfert 2","Recipient\nTransfer # 2","Gegevensstromen Ontvanger  #2",162,{"$f":"CELL(cstAdresse,'MODELE FICHE'!C74)","v":"'[Fiche de traitement-questionnaires + entretiens.xlsm]MODELE FICHE'!$C$74"},null,false,"FF"]
["Pays\nTransfert 2","Country\nTransfer # 2","Gegevensstromen Land  #2",163,{"$f":"CELL(cstAdresse,'MODELE FICHE'!D74)","v":"'[Fiche de traitement-questionnaires + entretiens.xlsm]MODELE FICHE'!$D$74"},null,false,"FG"]
["Type de Garanties\nTransfert 2","PD protection type\nTransfer # 2","Gegevensstromen Garantie Type  #2",164,{"$f":"CELL(cstAdresse,'MODELE FICHE'!E74)","v":"'[Fiche de traitement-questionnaires + entretiens.xlsm]MODELE FICHE'!$E$74"},null,false,"FH"]
["Lien vers le doc\nTransfert 2","Link to document\nTransfer # 2","Gegevensstromen link naar het document #2",165,{"$f":"CELL(cstAdresse,'MODELE FICHE'!G74)","v":"'[Fiche de traitement-questionnaires + entretiens.xlsm]MODELE FICHE'!$G$74"},null,false,"FI"]
["Destinataire\nTransfert 3","Recipient\nTransfer # 3","Gegevensstromen Ontvanger  #3",166,{"$f":"CELL(cstAdresse,'MODELE FICHE'!C75)","v":"'[Fiche de traitement-questionnaires + entretiens.xlsm]MODELE FICHE'!$C$75"},null,false,"FJ"]
["Pays\nTransfert 3","Country\nTransfer # 3","Gegevensstromen Land  #3",167,{"$f":"CELL(cstAdresse,'MODELE FICHE'!D75)","v":"'[Fiche de traitement-questionnaires + entretiens.xlsm]MODELE FICHE'!$D$75"},null,false,"FK"]
["Type de Garanties\nTransfert 3","PD protection type\nTransfer # 3","Gegevensstromen Garantie Type  #3",168,{"$f":"CELL(cstAdresse,'MODELE FICHE'!E75)","v":"'[Fiche de traitement-questionnaires + entretiens.xlsm]MODELE FICHE'!$E$75"},null,false,"FL"]
["Lien vers le doc\nTransfert 3","Link to document\nTransfer # 3","Gegevensstromen link naar het document # 3",169,{"$f":"CELL(cstAdresse,'MODELE FICHE'!G75)","v":"'[Fiche de traitement-questionnaires + entretiens.xlsm]MODELE FICHE'!$G$75"},null,false,"FM"]
["Destinataire\nTransfert 4","Recipient\nTransfer # 4","Gegevensstromen Ontvanger  #4",170,{"$f":"CELL(cstAdresse,'MODELE FICHE'!C76)","v":"'[Fiche de traitement-questionnaires + entretiens.xlsm]MODELE FICHE'!$C$76"},null,false,"FN"]
["Pays\nTransfert 4","Country\nTransfer # 4","Gegevensstromen Land  #4",171,{"$f":"CELL(cstAdresse,'MODELE FICHE'!D76)","v":"'[Fiche de traitement-questionnaires + entretiens.xlsm]MODELE FICHE'!$D$76"},null,false,"FO"]
["Type de Garanties\nTransfert 4","PD protection type\nTransfer # 4","Gegevensstromen Garantie Type  #4",172,{"$f":"CELL(cstAdresse,'MODELE FICHE'!E76)","v":"'[Fiche de traitement-questionnaires + entretiens.xlsm]MODELE FICHE'!$E$76"},null,false,"FP"]
["Lien vers le doc\nTransfert 4","Link to document\nTransfer # 4","Gegevensstromen link naar het document # 4",173,{"$f":"CELL(cstAdresse,'MODELE FICHE'!G76)","v":"'[Fiche de traitement-questionnaires + entretiens.xlsm]MODELE FICHE'!$G$76"},null,false,"FQ"]
["Mesures de sécurité\nPoint de contrôle 1","Security measures\nEvidence #1","Beveiligingsmaatregelen\nbewijsmateriaal #1",174,{"$f":"CELL(cstAdresse,'MODELE FICHE'!E79)","v":"'[Fiche de traitement-questionnaires + entretiens.xlsm]MODELE FICHE'!$E$79"},null,false,"FR"]
["Mesures de sécurité\nPoint de contrôle 2","Security measures\nEvidence # 2","Beveiligingsmaatregelen\nbewijsmateriaal #2",175,{"$f":"CELL(cstAdresse,'MODELE FICHE'!E80)","v":"'[Fiche de traitement-questionnaires + entretiens.xlsm]MODELE FICHE'!$E$80"},null,false,"FS"]
["Mesures de sécurité\nPoint de contrôle 3","Security measures\nEvidence # 3","Beveiligingsmaatregelen\nbewijsmateriaal #3",176,{"$f":"CELL(cstAdresse,'MODELE FICHE'!E81)","v":"'[Fiche de traitement-questionnaires + entretiens.xlsm]MODELE FICHE'!$E$81"},null,false,"FT"]
["Mesures de sécurité\nPoint de contrôle 4","Security measures\nEvidence # 4","Beveiligingsmaatregelen\nbewijsmateriaal #4",177,{"$f":"CELL(cstAdresse,'MODELE FICHE'!E82)","v":"'[Fiche de traitement-questionnaires + entretiens.xlsm]MODELE FICHE'!$E$82"},null,false,"FU"]
["Mesures de sécurité\nPoint de contrôle 5","Security measures\nEvidence # 5","Beveiligingsmaatregelen\nbewijsmateriaal #5",178,{"$f":"CELL(cstAdresse,'MODELE FICHE'!E83)","v":"'[Fiche de traitement-questionnaires + entretiens.xlsm]MODELE FICHE'!$E$83"},null,false,"FV"]
["Mesures de sécurité\nPoint de contrôle 6","Security measures\nEvidence # 6","Beveiligingsmaatregelen\nbewijsmateriaal #6",179,{"$f":"CELL(cstAdresse,'MODELE FICHE'!E84)","v":"'[Fiche de traitement-questionnaires + entretiens.xlsm]MODELE FICHE'!$E$84"},null,false,"FW"]
["Mesures de sécurité\nPoint de contrôle 7","Security measures\nEvidence # 7","Beveiligingsmaatregelen\nbewijsmateriaal #7",180,{"$f":"CELL(cstAdresse,'MODELE FICHE'!E85)","v":"'[Fiche de traitement-questionnaires + entretiens.xlsm]MODELE FICHE'!$E$85"},null,false,"FX"]
["Mesures de sécurité\nPoint de contrôle 8","Security measures\nEvidence # 8","Beveiligingsmaatregelen\nbewijsmateriaal #8",181,{"$f":"CELL(cstAdresse,'MODELE FICHE'!E86)","v":"'[Fiche de traitement-questionnaires + entretiens.xlsm]MODELE FICHE'!$E$86"},null,false,"FY"]
["Mesures de sécurité\nPoint de contrôle 9","Security measures\nEvidence # 9","Beveiligingsmaatregelen\nbewijsmateriaal #9",182,{"$f":"CELL(cstAdresse,'MODELE FICHE'!E87)","v":"'[Fiche de traitement-questionnaires + entretiens.xlsm]MODELE FICHE'!$E$87"},null,false,"FZ"]
["Mesures de sécurité\nPoint de contrôle 10","Security measures\nEvidence # 10","Beveiligingsmaatregelen\nbewijsmateriaal #10",183,{"$f":"CELL(cstAdresse,'MODELE FICHE'!E88)","v":"'[Fiche de traitement-questionnaires + entretiens.xlsm]MODELE FICHE'!$E$88"},null,false,"GA"]
["Mesures de sécurité\nPoint de contrôle 11","Security measures\nEvidence # 11","Beveiligingsmaatregelen\nbewijsmateriaal #11",184,{"$f":"CELL(cstAdresse,'MODELE FICHE'!E89)","v":"'[Fiche de traitement-questionnaires + entretiens.xlsm]MODELE FICHE'!$E$89"},null,false,"GB"]
["Mesures de sécurité\nPoint de contrôle 12","Security measures\nEvidence # 12","Beveiligingsmaatregelen\nbewijsmateriaal #12",185,{"$f":"CELL(cstAdresse,'MODELE FICHE'!E90)","v":"'[Fiche de traitement-questionnaires + entretiens.xlsm]MODELE FICHE'!$E$90"},null,{"$f":"ISERR(E186)","v":false},"GC"]
["Mesures de sécurité\nPoint de contrôle 13","Security measures\nEvidence # 13","Beveiligingsmaatregelen\nbewijsmateriaal #13",186,{"$f":"CELL(cstAdresse,'MODELE FICHE'!E91)","v":"'[Fiche de traitement-questionnaires + entretiens.xlsm]MODELE FICHE'!$E$91"},null,false,"GD"]
["Mesures de sécurité\nPoint de contrôle 14","Security measures\nEvidence # 14","Beveiligingsmaatregelen\nbewijsmateriaal #14",187,{"$f":"CELL(cstAdresse,'MODELE FICHE'!E92)","v":"'[Fiche de traitement-questionnaires + entretiens.xlsm]MODELE FICHE'!$E$92"},null,false,"GE"]
["Mesures de sécurité\nPoint de contrôle 15","Security measures\nEvidence # 15","Beveiligingsmaatregelen\nbewijsmateriaal #15",188,{"$f":"CELL(cstAdresse,'MODELE FICHE'!E93)","v":"'[Fiche de traitement-questionnaires + entretiens.xlsm]MODELE FICHE'!$E$93"},null,false,"GF"]
["Mesures de sécurité\nPoint de contrôle 16","Security measures\nEvidence # 16","Beveiligingsmaatregelen\nbewijsmateriaal #16",189,{"$f":"CELL(cstAdresse,'MODELE FICHE'!E94)","v":"'[Fiche de traitement-questionnaires + entretiens.xlsm]MODELE FICHE'!$E$94"},null,false,"GG"]
["Mesures de sécurité\nPoint de contrôle 17","Security measures\nEvidence # 17","Beveiligingsmaatregelen\nbewijsmateriaal #17",190,{"$f":"CELL(cstAdresse,'MODELE FICHE'!E95)","v":"'[Fiche de traitement-questionnaires + entretiens.xlsm]MODELE FICHE'!$E$95"},null,false,"GH"]
["Mesures de sécurité\nPoint de contrôle 18","Security measures\nEvidence # 18","Beveiligingsmaatregelen\nbewijsmateriaal #18",191,{"$f":"CELL(cstAdresse,'MODELE FICHE'!E96)","v":"'[Fiche de traitement-questionnaires + entretiens.xlsm]MODELE FICHE'!$E$96"},null,false,"GI"]
["Mesures de sécurité\nPoint de contrôle 19","Security measures\nEvidence # 19","Beveiligingsmaatregelen\nbewijsmateriaal #19",192,{"$f":"CELL(cstAdresse,'MODELE FICHE'!E97)","v":"'[Fiche de traitement-questionnaires + entretiens.xlsm]MODELE FICHE'!$E$97"},null,false,"GJ"]
["Mesures de sécurité\nPoint de contrôle 20","Security measures\nEvidence # 20","Beveiligingsmaatregelen\nbewijsmateriaal #20",193,{"$f":"CELL(cstAdresse,'MODELE FICHE'!E98)","v":"'[Fiche de traitement-questionnaires + entretiens.xlsm]MODELE FICHE'!$E$98"},null,false,"GK"]
["Mesures de sécurité\nPoint de contrôle 21","Security measures\nEvidence # 21","Beveiligingsmaatregelen\nbewijsmateriaal #21",194,{"$f":"CELL(cstAdresse,'MODELE FICHE'!E99)","v":"'[Fiche de traitement-questionnaires + entretiens.xlsm]MODELE FICHE'!$E$99"},null,false,"GL"]
["Mesures de sécurité\nPoint de contrôle 22","Security measures\nEvidence # 22","Beveiligingsmaatregelen\nbewijsmateriaal #22",195,{"$f":"CELL(cstAdresse,'MODELE FICHE'!E100)","v":"'[Fiche de traitement-questionnaires + entretiens.xlsm]MODELE FICHE'!$E$100"},null,false,"GM"]
["Mesures de sécurité\nPoint de contrôle 23","Security measures\nEvidence # 23","Beveiligingsmaatregelen\nbewijsmateriaal #23",196,{"$f":"CELL(cstAdresse,'MODELE FICHE'!E101)","v":"'[Fiche de traitement-questionnaires + entretiens.xlsm]MODELE FICHE'!$E$101"},null,false,"GN"]
["Mesures de sécurité\nPoint de contrôle 24","Security measures\nEvidence # 24","Beveiligingsmaatregelen\nbewijsmateriaal #24",197,{"$f":"CELL(cstAdresse,'MODELE FICHE'!E102)","v":"'[Fiche de traitement-questionnaires + entretiens.xlsm]MODELE FICHE'!$E$102"},null,false,"GO"]
["Mesures de sécurité\nPoint de contrôle 25","Security measures\nEvidence # 25","Beveiligingsmaatregelen\nbewijsmateriaal #25",198,{"$f":"CELL(cstAdresse,'MODELE FICHE'!E103)","v":"'[Fiche de traitement-questionnaires + entretiens.xlsm]MODELE FICHE'!$E$103"},null,false,"GP"]
["Mesures de sécurité\nPoint de contrôle 26","Security measures\nEvidence # 26","Beveiligingsmaatregelen\nbewijsmateriaal #26",199,{"$f":"CELL(cstAdresse,'MODELE FICHE'!E104)","v":"'[Fiche de traitement-questionnaires + entretiens.xlsm]MODELE FICHE'!$E$104"},null,false,"GQ"]
["Mesures de sécurité\nPoint de contrôle 27","Security measures\nEvidence # 27","Beveiligingsmaatregelen\nbewijsmateriaal #27",200,{"$f":"CELL(cstAdresse,'MODELE FICHE'!E105)","v":"'[Fiche de traitement-questionnaires + entretiens.xlsm]MODELE FICHE'!$E$105"},null,false,"GR"]
["Mesures de sécurité\nPoint de contrôle 28","Security measures\nEvidence # 28","Beveiligingsmaatregelen\nbewijsmateriaal #28",201,{"$f":"CELL(cstAdresse,'MODELE FICHE'!E106)","v":"'[Fiche de traitement-questionnaires + entretiens.xlsm]MODELE FICHE'!$E$106"},null,false,"GS"]
["Mesures de sécurité\nPoint de contrôle 29","Security measures\nEvidence # 29","Beveiligingsmaatregelen\nbewijsmateriaal #29",202,{"$f":"CELL(cstAdresse,'MODELE FICHE'!E107)","v":"'[Fiche de traitement-questionnaires + entretiens.xlsm]MODELE FICHE'!$E$107"},null,{"$f":"ISERR(E203)","v":false},"GT"]
["Mesures de sécurité\nPoint de contrôle 30","Security measures\nEvidence # 30","Beveiligingsmaatregelen\nbewijsmateriaal #30",203,{"$f":"CELL(cstAdresse,'MODELE FICHE'!E108)","v":"'[Fiche de traitement-questionnaires + entretiens.xlsm]MODELE FICHE'!$E$108"},null,false,"GU"]
["Mesures de sécurité\nPoint de contrôle 31","Security measures\nEvidence # 31","Beveiligingsmaatregelen\nbewijsmateriaal #31",204,{"$f":"CELL(cstAdresse,'MODELE FICHE'!E109)","v":"'[Fiche de traitement-questionnaires + entretiens.xlsm]MODELE FICHE'!$E$109"},null,false,"GV"]
["Mesures de sécurité\nPoint de contrôle 32","Security measures\nEvidence # 32","Beveiligingsmaatregelen\nbewijsmateriaal #32",205,{"$f":"CELL(cstAdresse,'MODELE FICHE'!E110)","v":"'[Fiche de traitement-questionnaires + entretiens.xlsm]MODELE FICHE'!$E$110"},null,false,{"$f":"IF($D206<=26,\"\",CHAR(64+INT(($D206-1)/26)))&CHAR(65+MOD($D206-1,26))","v":"GW"}]
["Mesures de sécurité\nPoint de contrôle 33","Security measures\nEvidence # 33","Beveiligingsmaatregelen\nbewijsmateriaal #33",206,{"$f":"CELL(cstAdresse,'MODELE FICHE'!E111)","v":"'[Fiche de traitement-questionnaires + entretiens.xlsm]MODELE FICHE'!$E$111"},null,false,"GX"]
["Mesures de sécurité\nPoint de contrôle 34","Security measures\nEvidence # 34","Beveiligingsmaatregelen\nbewijsmateriaal #34",207,{"$f":"CELL(cstAdresse,'MODELE FICHE'!E112)","v":"'[Fiche de traitement-questionnaires + entretiens.xlsm]MODELE FICHE'!$E$112"},null,false,"GY"]
["Mesures de sécurité\nPoint de contrôle 35","Security measures\nEvidence # 35","Beveiligingsmaatregelen\nbewijsmateriaal #35",208,{"$f":"CELL(cstAdresse,'MODELE FICHE'!E113)","v":"'[Fiche de traitement-questionnaires + entretiens.xlsm]MODELE FICHE'!$E$113"},null,false,"GZ"]
["Mesures de sécurité\nPoint de contrôle 36","Security measures\nEvidence # 36","Beveiligingsmaatregelen\nbewijsmateriaal #36",209,{"$f":"CELL(cstAdresse,'MODELE FICHE'!E114)","v":"'[Fiche de traitement-questionnaires + entretiens.xlsm]MODELE FICHE'!$E$114"},null,false,"HA"]
["Mesures de sécurité\nPoint de contrôle 37","Security measures\nEvidence # 37","Beveiligingsmaatregelen\nbewijsmateriaal #37",210,{"$f":"CELL(cstAdresse,'MODELE FICHE'!E115)","v":"'[Fiche de traitement-questionnaires + entretiens.xlsm]MODELE FICHE'!$E$115"},null,false,"HB"]
["Mesures de sécurité\nPoint de contrôle 38","Security measures\nEvidence # 38","Beveiligingsmaatregelen\nbewijsmateriaal #38",211,{"$f":"CELL(cstAdresse,'MODELE FICHE'!E116)","v":"'[Fiche de traitement-questionnaires + entretiens.xlsm]MODELE FICHE'!$E$116"},null,false,"HC"]
["Mesures de sécurité\nPoint de contrôle 39","Security measures\nEvidence # 39","Beveiligingsmaatregelen\nbewijsmateriaal #39",212,{"$f":"CELL(cstAdresse,'MODELE FICHE'!E117)","v":"'[Fiche de traitement-questionnaires + entretiens.xlsm]MODELE FICHE'!$E$117"},null,false,"HD"]
["Mesures de sécurité\nPoint de contrôle 40","Security measures\nEvidence # 40","Beveiligingsmaatregelen\nbewijsmateriaal #40",213,{"$f":"CELL(cstAdresse,'MODELE FICHE'!E118)","v":"'[Fiche de traitement-questionnaires + entretiens.xlsm]MODELE FICHE'!$E$118"},null,false,"HE"]
["Mesures de sécurité\nPoint de contrôle 41","Security measures\nEvidence # 41","Beveiligingsmaatregelen\nbewijsmateriaal #41",214,{"$f":"CELL(cstAdresse,'MODELE FICHE'!E119)","v":"'[Fiche de traitement-questionnaires + entretiens.xlsm]MODELE FICHE'!$E$119"},null,false,"HF"]
["Mesures de sécurité\nPoint de contrôle 42","Security measures\nEvidence # 42","Beveiligingsmaatregelen\nbewijsmateriaal #42",215,{"$f":"CELL(cstAdresse,'MODELE FICHE'!E120)","v":"'[Fiche de traitement-questionnaires + entretiens.xlsm]MODELE FICHE'!$E$120"},null,false,"HG"]
["Mesures de sécurité\nPoint de contrôle 43","Security measures\nEvidence # 43","Beveiligingsmaatregelen\nbewijsmateriaal #43",216,{"$f":"CELL(cstAdresse,'MODELE FICHE'!E121)","v":"'[Fiche de traitement-questionnaires + entretiens.xlsm]MODELE FICHE'!$E$121"},null,false,"HH"]
["Mesures de sécurité\nPoint de contrôle 44","Security measures\nEvidence # 44","Beveiligingsmaatregelen\nbewijsmateriaal #44",217,{"$f":"CELL(cstAdresse,'MODELE FICHE'!E122)","v":"'[Fiche de traitement-questionnaires + entretiens.xlsm]MODELE FICHE'!$E$122"},null,false,"HI"]
["Mesures de sécurité\nPoint de contrôle 45","Security measures\nEvidence # 45","Beveiligingsmaatregelen\nbewijsmateriaal #45",218,{"$f":"CELL(cstAdresse,'MODELE FICHE'!E123)","v":"'[Fiche de traitement-questionnaires + entretiens.xlsm]MODELE FICHE'!$E$123"},null,{"$f":"ISERR(E219)","v":false},"HJ"]
["Mesures de sécurité\nPoint de contrôle 46","Security measures\nEvidence # 46","Beveiligingsmaatregelen\nbewijsmateriaal #46",219,{"$f":"CELL(cstAdresse,'MODELE FICHE'!E124)","v":"'[Fiche de traitement-questionnaires + entretiens.xlsm]MODELE FICHE'!$E$124"},null,false,"HK"]
["Application #1","Software # 1","Toepassingen # 1",220,{"$f":"CELL(cstAdresse,'MODELE FICHE'!C127)","v":"'[Fiche de traitement-questionnaires + entretiens.xlsm]MODELE FICHE'!$C$127"},null,false,"HL"]
["Application #2","Software # 2","Toepassingen # 2",221,{"$f":"CELL(cstAdresse,'MODELE FICHE'!C128)","v":"'[Fiche de traitement-questionnaires + entretiens.xlsm]MODELE FICHE'!$C$128"},null,false,"HM"]
["Application #3","Software # 3","Toepassingen # 3",222,{"$f":"CELL(cstAdresse,'MODELE FICHE'!C129)","v":"'[Fiche de traitement-questionnaires + entretiens.xlsm]MODELE FICHE'!$C$129"},null,false,"HN"]
["Application #4","Software # 4","Toepassingen # 4",223,{"$f":"CELL(cstAdresse,'MODELE FICHE'!C130)","v":"'[Fiche de traitement-questionnaires + entretiens.xlsm]MODELE FICHE'!$C$130"},null,false,"HO"]
["Application #5","Software # 5","Toepassingen # 5",224,{"$f":"CELL(cstAdresse,'MODELE FICHE'!C131)","v":"'[Fiche de traitement-questionnaires + entretiens.xlsm]MODELE FICHE'!$C$131"},null,false,"HP"]
["Application #6","Software # 6","Toepassingen # 6",225,{"$f":"CELL(cstAdresse,'MODELE FICHE'!C132)","v":"'[Fiche de traitement-questionnaires + entretiens.xlsm]MODELE FICHE'!$C$132"},null,false,"HQ"]
["Commentaires","Additional comments","Aanvullende opmerkingen",226,{"$f":"CELL(cstAdresse,'MODELE FICHE'!C134)","v":"'[Fiche de traitement-questionnaires + entretiens.xlsm]MODELE FICHE'!$C$134"},null,false,"HR"]
["Evaluation / Scoring","Assessment / Scoring","Evaluatie / scoring",227,{"$f":"CELL(cstAdresse,'MODELE FICHE'!C137)","v":"'[Fiche de traitement-questionnaires + entretiens.xlsm]MODELE FICHE'!$C$137"},null,false,"HS"]
["Décision automatique avec effet légal","Automated-decision making with legal or similar significant effect","Geautomatiseerde besluitvorming met juridische of soortgelijke aanzienlijke gevolgen",228,{"$f":"CELL(cstAdresse,'MODELE FICHE'!C138)","v":"'[Fiche de traitement-questionnaires + entretiens.xlsm]MODELE FICHE'!$C$138"},null,false,"HT"]
["Surveillance systématique","Systematic monitoring","Systematische bewaking",229,{"$f":"CELL(cstAdresse,'MODELE FICHE'!C139)","v":"'[Fiche de traitement-questionnaires + entretiens.xlsm]MODELE FICHE'!$C$139"},null,false,"HU"]
["Large échelle","Data processed on a large scale","Gegevens verwerkt op grote schaal",230,{"$f":"CELL(cstAdresse,'MODELE FICHE'!C140)","v":"'[Fiche de traitement-questionnaires + entretiens.xlsm]MODELE FICHE'!$C$140"},null,false,"HV"]
["Croisement de données","Matching or combining datasets","Combinatie van datasets",231,{"$f":"CELL(cstAdresse,'MODELE FICHE'!C141)","v":"'[Fiche de traitement-questionnaires + entretiens.xlsm]MODELE FICHE'!$C$141"},null,false,"HW"]
["Personnes vulnérables","Data concerning vulnerable data subjects","Gegevens met betrekking tot kwetsbare betrokkenen",232,{"$f":"CELL(cstAdresse,'MODELE FICHE'!C142)","v":"'[Fiche de traitement-questionnaires + entretiens.xlsm]MODELE FICHE'!$C$142"},null,false,"HX"]
["Usage innovant","Innovative use or applying new technological or organisational solutions","Innovatief gebruik of de toepassing van nieuwe technologische en organisatorische oplossingen",233,{"$f":"CELL(cstAdresse,'MODELE FICHE'!C143)","v":"'[Fiche de traitement-questionnaires + entretiens.xlsm]MODELE FICHE'!$C$143"},null,false,"HY"]
["Blocage d'un droit / contrat","Prevents data subjects from exercising a right or using a service or a contract","Voorkomt betrokkenen van een recht uit te oefenen of het gebruik van een dienst of een contract",234,{"$f":"CELL(cstAdresse,'MODELE FICHE'!C144)","v":"'[Fiche de traitement-questionnaires + entretiens.xlsm]MODELE FICHE'!$C$144"},null,false,"HZ"]
["Données sensibles","Sensitive data","Gevoelige gegevens",235,{"$f":"CELL(cstAdresse,'MODELE FICHE'!C145)","v":"'[Fiche de traitement-questionnaires + entretiens.xlsm]MODELE FICHE'!$C$145"},null,{"$f":"ISERR(E236)","v":false},"IA"]
["Exonération","Exemption","Exemption",236,{"$f":"CELL(cstAdresse,'MODELE FICHE'!C146)","v":"'[Fiche de traitement-questionnaires + entretiens.xlsm]MODELE FICHE'!$C$146"},null,false,"IB"]
["Justification exonération","Exemption justification","Exemption justification",237,{"$f":"CELL(cstAdresse,'MODELE FICHE'!C147)","v":"'[Fiche de traitement-questionnaires + entretiens.xlsm]MODELE FICHE'!$C$147"},null,false,"IC"]